Workbook

Sheet Introduction
A1: Introduction: 40209 Application Data Sheet and Workbook
B3: The 40209 Application Data Sheet and Workbook is intended to allow applicants to provide required information in a consistent and complete manner. Please read the instructions on every tab to ensure that all neccesary information is included for the corresponding Area of Interest. Check that all inputs are accurate, and that the workbook formulas have produced an accurate and sensible result. Applicants also have the option to submit a Life-Cycle Assessment (LCA) as a supplement to their application. Please see Section IV.D.xxvi of the FOA for more information and view the resources below.
B8: National Energy Technology Laboratory CO2U LCA Guidance Toolkit
B9: Other useful documents:
B10: United States Department of Energy Pathways to Commercial Liftoff: The Pathway to Industrial Decarbonization
B11: United States Department of Energy Better Plants Energy Intensity Baselining and Tracking Guidance
B12: Carbon Leadership Forum: 2023 North American Material Baselines Report
B13: Environmentally Extended Input-Output for Industrial Decarbonization Analysis (EEIO-IDA) Tool | Department of Energy
B14: International Energy Agency: Energy End-uses and Efficiency Indicators Data Explorer (subscription required for access to full dataset)
B16: Tabs in this Workbook
B17: Data Sheets | D17: Help Tabs | G17: Unit / Factor References
B18: AOI 1&2 Overview | D18: Help - Stationary Combustion | G18: Unit Conversions
B19: AOI 2a Summary | D19: Help - Purchased Gases | G19: Heat Content
B20: AOI 2b Summary | D20: Help - Refrigeration and AC | G20: Emission Factors
B21: Scope 1 - Stationary Combustion | D21: Help - Electricity
B22: Scope 1 - Process Emissions | D22: Help - Market-Based Method
B23: Scope 1 - Purchased Gases | D23: Help - Steam
B24: Scope 1 - Refrigerants | D24: Help - Hydrogen
B25: Scope 2 - Electricity
B26: Scope 2 - Steam
B27: Scope 2 - Hydrogen
B28: Scope 3 - Indirect
B29: Optional - RECs

Sheet AOI 1&2 Overview
K1: Back to Introduction Tab
B2: Proposed Project Overview (AOI 1 or 2)
B3: User Input | C3: Calculated or from other tab | D3: Instructions are in yellow boxes next to the corresponding inputs
B4: This worksheet is used to capture information on all Proposed Projects under this FOA (Both AOI 1 and AOI 2 Proposed Projects). Input data and assumptions should be substantiated in and show clear correspondence to the applicant's project narrative. All Applicants should fill out the relevant user input (green) cells in this Overview tab. Proposed Projects under AOI 2a and AOI 2b are required to complete the additional Scope 1, Scope 2, and Scope 3 (AOI 2b only) tabs of this workbook, with the summary of their inputs reflected in their corresponding summary tabs. Data will be extracted from this workbook. Therefore, no cells, rows, or columns should be added. Cash flow statement instructions: In the appendix materials, applicants should provide an investment bank quality financial model for the project. The model should quantify the projected financial parameters including operating costs, operating revenues, financing cash flows, EBITDA, tax credits/liabilities, and ROI over the project lifespan. The model should also include a list of key economic/financial assumptions as a separate tab. The model should be dynamic and not hardcoded. [Please use nominal dollars, note inflation estimator used, and the start year]
B6: Applicant Information | C6: Input | D6: Units | E6: Notes
A7: Applicant Overview | B7: Applicant Control Number | E7: The control number used to track the application in the DOE S3 Exchange application portal.
B8: Company Name
B9: City (HQ)
B10: State (HQ)
B11: Zip Code (HQ)
B12: Net Income | D12: $ | E12: Net income of the applicant for the most recently completed fiscal year. (if applicable)
B13: Projected cash on hand at the start of the federal award | D13: $
B14: Debt to capital ratio | D14: % | E14: Leverage ratio for total interest-bearing debt and liabilities by total available capital for most recently completed fiscal year.
A15: Project Site Overview | B15: City (Facility)
B16: State (Facility)
B17: Zip Code (Facility)
B18: Census Tract (Facility)
B19: EPA GHGRP ID (if applicable) | E19: Applicants subject to EPA GHGRP reporting should provide their GHGRP ID.
A20: Proposed Project Overview | B20: Area of Interest
B21: Project Type
B22: Overall Project Cost | D22: $ | E22: Total project cost, including the DOE Award Share and Applicant's Cost Share
B23: Applicant's Proposed Cost Share | D23: $ | E23: The Applicant's cost share for the proposed project
B24: Proposed Project Cost Share (%) | C24: =C23/(C22) ->  | D24: % | E24: Automatically calculated based on the Applicant's cost share and total project cost
B25: Technology Readiness Level of the Proposed Project | E25: Submit the Technology Readiness Level (1-9) of the technology, equipment, or process used in the proposed project. (See Appendix D of the FOA)
B26: Facility Output Product and Units | E26: Brief description of the facility output product in 5 words or less (e.g., "rebar"). In column D, enter the unit of output for the facility, to be used in the facility production rate and calculating the facility's carbon intensity (e.g. unit of mass, volume, or other measurement of product)
B27: Facility Current production rate | D27: =CONCATENATE($D$26,IF(COUNTBLANK($D$26)=1,"[unit of output]",""),"/year") -> [unit of output]/year | E27: Current annual production in the existing facility being re-equipped or expanded, if applicable. Otherwise, "N/A"
B28: Facility Future production rate | D28: =CONCATENATE($D$26,IF(COUNTBLANK($D$26)=1,"[unit of output]",""),"/year") -> [unit of output]/year | E28: Future annual production in the facility covered by the project (new facility, re-equipped, or expanded) If the project will alter annual production of an existing facility (e.g., increase or decrease output), that should be reflected here and described in the narrative.
B29: Current Overall Production Rate of Applicant | D29: =CONCATENATE($D$26,IF(COUNTBLANK($D$26)=1,"[unit of output]",""),"/year") -> [unit of output]/year | E29: Current annual production across all applicant facilities of the proposed project output product.
B30: Number of Jobs to be Created | D30: FTE equivalent | E30: Quantify the number of direct, permanent jobs to be created under the proposed project.
B31: Date to Begin Construction | D31: mm/dd/yyyy
B32: Date to Begin Operation | D32: mm/dd/yyyy
A33: Project Finance | B33: Project Return on Investment | D33: $ | E33: See instructions above on the cash flow statement to be submitted
B34: Weighted Average Cost of Capital | D34: $ | E34: See instructions above on the cash flow statement to be submitted
B35: Projected payback period | D35: months | E35: See instructions above on the cash flow statement to be submitted
B36: Net present value (with DOE funding) | D36: $ | E36: See instructions above on the cash flow statement to be submitted
B37: Net present value (without DOE funding) | D37: $
B38: Unlevered Project IRR (with DOE funding) | D38: % | E38: See instructions above on the cash flow statement to be submitted
B39: Unlevered Project IRR (without DOE funding) | D39: %
B40: Break-even point (with DOE funding) | D40: $ | E40: See instructions above on the cash flow statement to be submitted
B41: Break-even point (without DOE funding) | D41: $
B42: Break-even point (with DOE funding) | D42: =CONCATENATE($D$26,IF(COUNTBLANK($D$26)=1,"[unit of output]","")," sold") -> [unit of output] sold | E42: See instructions above on the cash flow statement to be submitted
B43: Break-even point (without DOE funding) | D43: =CONCATENATE($D$26,IF(COUNTBLANK($D$26)=1,"[unit of output]","")," sold") -> [unit of output] sold
A44: Product Competitiveness | B44: Expected sale price | D44: =CONCATENATE("$/",$D$26,IF(COUNTBLANK($D$26)=1,"[unit of output]","")) -> $/[unit of output] | E44: Estimated sale price per unit for the primary technology product as covered by application.
B45: Unit production cost | D45: =CONCATENATE("$/",$D$26,IF(COUNTBLANK($D$26)=1,"[unit of output]","")) -> $/[unit of output] | E45: Estimated unit production cost for the primary technology product as covered by the application.
B46: Gross margin | D46: % | E46: Estimated gross margin for the primary technology product as covered by the application.
B47: Unit production cost stack | D47: =CONCATENATE("$/",$D$26,IF(COUNTBLANK($D$26)=1,"[unit of output]","")) -> $/[unit of output] | E47: Unit cost build up for the primary technology product as covered in the application.
B48: Raw Materials | D48: =CONCATENATE("$/",$D$26,IF(COUNTBLANK($D$26)=1,"[unit of output]","")) -> $/[unit of output] | E48: Cost of raw material per unit of production.
B49: Freight and logistics | D49: $/[unit of output] | E49: Freight and logistics cost per unit of production.
B50: Labor | D50: $/[unit of output] | E50: Labor cost per unit of production.
B51: Utilities | D51: $/[unit of output] | E51: Utilities cost per unit of production.
B52: Maintenance & Sustaining Capital | D52: $/[unit of output] | E52: Maintenance and sustaining capital per unit of production.
B53: SGA & Overhead | D53: $/[unit of output] | E53: Selling, general, and administrative and overhead costs per unit of production.
B54: Depreciated capital | D54: =CONCATENATE("$/",$D$26,IF(COUNTBLANK($D$26)=1,"[unit of output]","")) -> $/[unit of output] | E54: Depreciated capital per unit of production.
B55: Waste Disposal | D55: $/[unit of output] | E55: Waste disposal of material scrap from production processes per unit of production.
B56: Other | D56: $/[unit of output] | E56: Other categories per unit of production not captured above.
A57: Commercial Agreements related to the Proposed Project | B57: Type | C57: Annual Volume (include units) | D57: Annual Value ($) | E57: Status | G57: Comments (for supply agreements, specify what is being supplied) If unable to include all information in the available rows, aggregate similar commercial agreements, provide details in this comments column, and ensure that all commercial agreements are accurately reflected in the project budget
B68: Total Supplier Agreements (all status) | D68: =SUMIF(B58:B67,"Supplier",D58:D67) -> 0
B69: Total Offtake Agreements (all status) | D69: =SUMIF(B58:B67,"Offtake",D58:D67) -> 0
A70: Project Capital | B70: Funding Source | C70: Funding Type | D70: Funding Amount ($) | E70: Status | G70: Comments If unable to include all information in the available rows, aggregate similar funding sources, provide details in this comments column, and ensure that all funding sources are accurately reflected in the project budget
B80: Total Equity Financing (all status) | C80: Equity | D80: =SUMIF(C71:C79,C80,D71:D79) -> 0
B81: Total Debt Financing (all status) | C81: Debt | D81: =SUMIF(C71:C79,C81,D71:D79) -> 0
B82: Total Grant Financing (all status) | C82: Grant | D82: =SUMIF(C71:C79,C82,D71:D79) -> 0
B83: Total Other Financing (all status) | C83: Other | D83: =SUMIF(C71:C79,C83,D71:D79) -> 0
B84: Total Financing (all status) | C84: Total | D84: =SUM(D80:D83) -> 0
B85: AOI 1 Only
B86: Applicant Information | C86: Input | D86: Units | E86: Notes
A87: Overview | B87: AOI 1 Only - Eligible SAEP Category | E87: Select the Eligible SAEP category from the FOA Appendix I that matches the product being manufactured or recycled in the proposed project. For AOI 2, "N/A"
B88: AOI 2 Only
B89: Applicant Information | C89: Input | D89: Units | E89: Notes
A90: Overview | B90: Appropriate Industry Benchmark Carbon Intensity | D90: =CONCATENATE("MT CO2-e/",IF(COUNTBLANK($D$26)=1,"[unit of output]",$D$26)) -> MT CO2-e/[unit of output] | E90: A “benchmark” is an assessment relative to an industry-standard best practice representing commercially available off-the-shelf technology, referred to as “state-of-the-art.” The benchmark should be justified and documented using widely recognized U.S. and/or international reference documents. “Carbon intensity” is the amount of GHG in CO2e emitted per “functional unit” or unit output (e.g., mass, volume, or other measurement of product) in an industrial process for normalized emissions and calculated on a life cycle basis.
B91: Sector/Industry | E91: Select the sector or industry that most closely matches the facility.
B92: If other Sector | E92: If the facility's sector/industry is not listed above and "Other" was selected, type a freeform answer here. Otherwise, "N/A"
B93: AOI 2a ONLY Decarbonization Approach | E93: Select the process change that most closely describes the greenhouse gas reduction technique. For AOI 2b, "N/A"
B94: AOI 2a ONLY If other (or multiple) Decarbonization Approach | E94: If selected Other above, type a freeform answer. If secondary or multiple equipment types are used, use freeform answer to describe. Otherwise, "N/A"
B95: AOI 2b Only - Low Carbon Material | E95: Select the low carbon material being produced in the proposed project. For AOI 2a, "N/A"
B96: AOI 2b ONLY If other Low Carbon Material | E96: If selected Other above, type a freeform answer. Otherwise, "N/A"

Sheet AOI 2a Summary
B1: AOI 2a Emissions Summary | K1: Back to Introduction Tab
B2: Guidance
B3: This Summary Tab estimates baseline and future annual GHG emissions at the proposed project facility for AOI 2a. Columns G and J below automatically sum the baseline and proposed final project emissions from the required Scope 1, Scope 2 tabs. Applicants have the option to include information on RECs, though these will not count in the calculation of the applicants' total reductions and are merely an opportunity for the applicant to showcase additional efforts underway. The methodology for estimating baseline and future emissions in this data sheet is based on EPA's Simplified Greenhouse Gas Calculator. While this simplified calculator may not calculate all possible emissions at a facility, it is designed to capture the major industrial Scope 1 and Scope 2 sources. Applicants have the option to submit a Life-Cycle Assessment (LCA) as a supplement to their application. Please see Section IV.D.xxvi of the FOA for more information and view the 'Introduction' tab for a list of available resources. Applicants should complete each tab with in the most recent year-long reporting period. If the applicant does not have a full year of data, they should annualize the available data.
H5: Project Type: | I5: ='AOI 1&2 Overview'!C21 -> 0
G7: Baseline | J7: Proposed Project
B8: Total Facility Scope 1 Emissions | G8: ='Scope 1 - Stationary Combustion'!F146+'Scope 1 - Process Emissions'!C53+'Scope 1 - Refrigerants'!F38+'Scope 1 - Purchased Gases'!D28 -> 0 | H8: MT CO2-e/yr | J8: ='Scope 1 - Stationary Combustion'!L146+'Scope 1 - Process Emissions'!F53+'Scope 1 - Refrigerants'!J38+'Scope 1 - Purchased Gases'!F28 -> 0 | K8: MT CO2-e/yr
B9: Total Facility Scope 2 Emissions | G9: ='Scope 2 - Electricity'!E61+'Scope 2 - Steam'!F84+'Scope 2 - Hydrogen'!C81 -> 0 | H9: MT CO2-e/yr | J9: ='Scope 2 - Electricity'!G61+'Scope 2 - Steam'!K84+'Scope 2 - Hydrogen'!G81 -> 0 | K9: MT CO2-e/yr
B10: Total GHG Emissions | G10: =SUM(G8:G9) -> 0 | H10: MT CO2-e/yr | J10: =SUM(J8:J9) -> 0 | K10: MT CO2-e/yr
B11: RECs (Optional) - DO NOT count as emissions reductions | G11: ='Optional - RECs'!C26 -> 0 | H11: MT CO2-e/yr | J11: ='Optional - RECs'!F26 -> 0 | K11: MT CO2-e/yr
B12: Facility Output | G12: ='AOI 1&2 Overview'!C27 -> 0 | H12: =CONCATENATE('AOI 1&2 Overview'!$D$26,IF(COUNTBLANK('AOI 1&2 Overview'!$D$26)=1,"[unit of output]",""),"/year") -> [unit of output]/year | J12: ='AOI 1&2 Overview'!C28 -> 0 | K12: =CONCATENATE('AOI 1&2 Overview'!$D$26,IF(COUNTBLANK('AOI 1&2 Overview'!$D$26)=1,"[unit of output]",""),"/year") -> [unit of output]/year
B13: Carbon Intensity of Product(s) | G13: =G10/G12 ->  | H13: =CONCATENATE("MT CO2-e/",IF(COUNTBLANK('AOI 1&2 Overview'!$D$26)=1,"[unit of output]",'AOI 1&2 Overview'!$D$26)) -> MT CO2-e/[unit of output] | J13: =J10/J12 ->  | K13: =CONCATENATE("MT CO2-e/",IF(COUNTBLANK('AOI 1&2 Overview'!$D$26)=1,"[unit of output]",'AOI 1&2 Overview'!$D$26)) -> MT CO2-e/[unit of output]
B15: Appropriate Industry Benchmark for carbon intensity | G15: ='AOI 1&2 Overview'!C90 -> 0 | H15: =CONCATENATE("MT CO2-e/",IF(COUNTBLANK('AOI 1&2 Overview'!$D$26)=1,"[unit of output]",'AOI 1&2 Overview'!$D$26)) -> MT CO2-e/[unit of output]
B16: Projected reduction in total annual GHG emissions at the facility | G16: =G10-J10 -> 0 | H16: MT CO2-e/yr
B17: Percent reduction in total annual GHG emissions at the facility | G17: =(G10-J10)/G10 * 100 ->  | H17: %
B18: Percent reduction in the carbon intensity of the proposed project compared to industry benchmark | G18: =(G15-J13)/G15 * 100 ->  | H18: %
B19: Percent reduction in the carbon intensity of the proposed project compared to current facility | G19: =(G13-J13)/G13 * 100 ->  | H19: %
B20: Project cost benefit | G20: ='AOI 1&2 Overview'!C22/'AOI 2a Summary'!G16 ->  | H20: $/MT CO2-e/yr

Sheet AOI 2b Summary
B1: AOI 2b Emissions Summary | K1: Back to Introduction Tab
B2: This Summary Tab estimates baseline and future annual GHG emissions at the proposed project facility for AOI 2b. Columns G and J below automatically sum the baseline and proposed final project emissions from the required Scope 1, Scope 2, and Scope 3 tabs. Applicants have the option to include information on RECs, though these will not count in the calculation of the applicants' total reductions and are merely an opportunity for the applicant to showcase additional efforts underway. The methodology for estimating baseline and future emissions in this data sheet is based on EPA's Simplified Greenhouse Gas Calculator. While this simplified calculator may not calculate all possible emissions at a facility, it is designed to capture the major industrial Scope 1 and Scope 2 sources. Applicants have the option to submit a Life-Cycle Assessment (LCA) as a supplement to their application. Please see Section IV.D.xxvi of the FOA for more information and view the 'Introduction' tab for a list of available resources. For proposed projects that are establishing a new facility, or re-equipping or expanding an existing facility that is not yet operational by the applicant, as indicated on the 'AOI 1&2 Overview' tab, baseline information will not be utilized and cells on this summary tab that rely on baseline data will automatically be marked "N/A" below For proposed projects that are re-equipping or expanding an existing facility that is already owned and operated by the applicant, baseline information on the Scope 1, Scope 2, and Scope 3 tabs is required and will be considered when assessing the GHG emission reductions and carbon intensity of the proposed project. Applicants should complete each tab with in the most recent year-long reporting period. If the applicant does not have a full year of data, they should annualize the available data. Applicants may calculate relative to sites/portions of the facility that are relevant to the specific product addressed.
H4: Project Type: | I4: ='AOI 1&2 Overview'!C21 -> 0
G6: Baseline | J6: Proposed Project
B7: Total Product Scope 1 Emissions | G7: =IF(OR(I4='Sector List'!B3,I4='Sector List'!B5),'Scope 1 - Stationary Combustion'!F146+'Scope 1 - Process Emissions'!C53+'Scope 1 - Refrigerants'!F38+'Scope 1 - Purchased Gases'!D28,"N/A") -> N/A | H7: MT CO2-e/yr | J7: ='Scope 1 - Stationary Combustion'!L146+'Scope 1 - Process Emissions'!F53+'Scope 1 - Refrigerants'!J38+'Scope 1 - Purchased Gases'!F28 -> 0 | K7: MT CO2-e/yr
B8: Total Product Scope 2 Emissions | G8: =IF(OR(I4='Sector List'!B3,I4='Sector List'!B5),'Scope 2 - Electricity'!E61+'Scope 2 - Steam'!F84+'Scope 2 - Hydrogen'!C81,"N/A") -> N/A | H8: MT CO2-e/yr | J8: ='Scope 2 - Electricity'!G61+'Scope 2 - Steam'!K84+'Scope 2 - Hydrogen'!G81 -> 0 | K8: MT CO2-e/yr
B9: Total Product Scope 3 Emissions (if applicable) | G9: =IF(OR(I4='Sector List'!B3,I4='Sector List'!B5),'Scope 3 - Indirect'!B16,"N/A") -> N/A | H9: MT CO2-e/yr | J9: ='Scope 3 - Indirect'!D16 -> 0 | K9: MT CO2-e/yr
B10: Total GHG Emissions | G10: =IF(OR(I4='Sector List'!B3,I4='Sector List'!B5),SUM(G7:G8),"N/A") -> N/A | H10: MT CO2-e/yr | J10: =SUM(J7:J8) -> 0 | K10: MT CO2-e/yr
B11: RECs (Optional) - DO NOT count as emissions reductions | G11: ='Optional - RECs'!C26 -> 0 | H11: MT CO2-e/yr | J11: ='Optional - RECs'!F26 -> 0 | K11: MT CO2-e/yr
B12: Facility Output | G12: =IF(OR(I4='Sector List'!B3,I4='Sector List'!B5),'AOI 1&2 Overview'!C27,"N/A") -> N/A | H12: =CONCATENATE('AOI 1&2 Overview'!$D$26,IF(COUNTBLANK('AOI 1&2 Overview'!$D$26)=1,"[unit of output]",""),"/year") -> [unit of output]/year | J12: ='AOI 1&2 Overview'!C28 -> 0 | K12: =CONCATENATE('AOI 1&2 Overview'!$D$26,IF(COUNTBLANK('AOI 1&2 Overview'!$D$26)=1,"[unit of output]",""),"/year") -> [unit of output]/year
B13: Carbon Intensity of Product | G13: =IF(OR(I4='Sector List'!B3,I4='Sector List'!B5),G10/G12,"N/A") -> N/A | H13: =CONCATENATE("MT CO2-e/",IF(COUNTBLANK('AOI 1&2 Overview'!$D$26)=1,"[unit of output]",'AOI 1&2 Overview'!$D$26)) -> MT CO2-e/[unit of output] | J13: =J10/J12 ->  | K13: =CONCATENATE("MT CO2-e/",IF(COUNTBLANK('AOI 1&2 Overview'!$D$26)=1,"[unit of output]",'AOI 1&2 Overview'!$D$26)) -> MT CO2-e/[unit of output]
B15: Appropriate Industry Benchmark for carbon intensity | G15: ='AOI 1&2 Overview'!C90 -> 0 | H15: =CONCATENATE("MT CO2-e/",IF(COUNTBLANK('AOI 1&2 Overview'!$D$26)=1,"[unit of output]",'AOI 1&2 Overview'!$D$26)) -> MT CO2-e/[unit of output]
B16: Projected reduction in total annual GHG emissions at the facility | G16: =IF(OR(I4='Sector List'!B3,I4='Sector List'!B5),G10-J10,"N/A") -> N/A | H16: MT CO2-e/yr
B17: Percent reduction in total annual GHG emissions at the facility | G17: =IF(OR(I4='Sector List'!B3,I4='Sector List'!B5),(G10-J10)/G10,"N/A") -> N/A | H17: %
B18: Percent reduction in the product carbon intensity of the proposed project compared to industry benchmark | G18: =(G15-J13)/G15 ->  | H18: %
B19: Percent reduction in the product carbon intensity of the proposed project compared to current facility | G19: =IF(OR(I4='Sector List'!B3,I4='Sector List'!B5),(G13-J13)/G13,"N/A") -> N/A | H19: %
B20: Project cost benefit | G20: ='AOI 1&2 Overview'!C22/G16 ->  | H20: =CONCATENATE("$/MT CO2-e/",IF(COUNTBLANK('AOI 1&2 Overview'!$D$26)=1,"[unit of output]",'AOI 1&2 Overview'!$D$26)) -> $/MT CO2-e/[unit of output]

Sheet Scope 1 - Stationary Combustion
B1: Scope 1 Emissions from Stationary Combustion Sources | K1: Back to Introduction Tab
B3: Guidance
B4: (A) Enter annual data for each combustion unit, facility, or site (by fuel type) in GREEN cells on Table 1. Assign a particular source ID and Source description of your choosing. Example entry is shown in first row (Italics).
B5: - Select "Fuel Combusted" from drop down box.
B6: - Enter " Current Quantity Combusted" and choose the appropriate units from the drop down box in the unit column. If it's necessary to convert units, common heat contents can be found on the "Heat Content" sheet and unit conversions on the "Unit Conversion" sheet.
B7: - Enter "Future Quantity Combusted" and choose the appropriate units from the drop down box in the unit column. If it's necessary to convert units, common heat contents can be found on the "Heat Content" sheet and unit conversions on the "Unit Conversion" sheet.
B8: - If switching fuels during the project, there should be rows for both the current and the future fuel, showing a reduction in the current fuel and an increase in the future fuel.
B9: - If the project involves a retrofit that impacts fuel demand (e.g., installation of CCS equipment), the stationary combustion associated with that retrofit should be incorporated here.
B10: (B) If fuel is consumed in a facility but stationary fuel consumption data are not available, an estimate should be made for completeness. See the "Items to Note" section of the Help sheet for suggested estimation approaches.
B11: (C) Biomass CO2 emissions are not reported in the total emissions, but are reported separately at the bottom of the sheet.
B12: For categories that are not explicitly listed, please select the closest biomass category.
B14: For proposed projects that are establishing a new facility, or re-equipping or expanding an existing facility that is not yet operational by the applicant, baseline or "current" information on all tabs may be omitted.
B16: Table 1. Stationary Source Fuel Combustion
B17: Source | C17: Source | D17: Fuel | E17: Fuel State | F17: Current Annual Quantity | G17: Units | H17: Future Annual Quantity | I17: Units
B18: Name/ID | C18: Description | D18: Combusted | E18: (solid, liquid, gas) | F18: Combusted | H18: Combusted
B19: Example: Boiler 1 | C19: Natural gas boiler | D19: Natural Gas | E19: =IF(D19="","",VLOOKUP(D19,DropDown!$S$2:$T$28,2,FALSE)) -> Gas | F19: 10000 | G19: MMBtu | H19: 5000 | I19: MMBtu
E20: =IF(D20="","",VLOOKUP(D20,DropDown!$S$2:$T$28,2,FALSE)) -> 
E22: =IF(D22="","",VLOOKUP(D22,DropDown!$S$2:$T$28,2,FALSE)) -> 
E23: =IF(D23="","",VLOOKUP(D23,DropDown!$S$2:$T$28,2,FALSE)) -> 
E24: =IF(D24="","",VLOOKUP(D24,DropDown!$S$2:$T$28,2,FALSE)) -> 
E25: =IF(D25="","",VLOOKUP(D25,DropDown!$S$2:$T$28,2,FALSE)) -> 
E26: =IF(D26="","",VLOOKUP(D26,DropDown!$S$2:$T$28,2,FALSE)) -> 
E27: =IF(D27="","",VLOOKUP(D27,DropDown!$S$2:$T$28,2,FALSE)) -> 
E28: =IF(D28="","",VLOOKUP(D28,DropDown!$S$2:$T$28,2,FALSE)) -> 
E29: =IF(D29="","",VLOOKUP(D29,DropDown!$S$2:$T$28,2,FALSE)) -> 
E30: =IF(D30="","",VLOOKUP(D30,DropDown!$S$2:$T$28,2,FALSE)) -> 
E31: =IF(D31="","",VLOOKUP(D31,DropDown!$S$2:$T$28,2,FALSE)) -> 
E32: =IF(D32="","",VLOOKUP(D32,DropDown!$S$2:$T$28,2,FALSE)) -> 
E33: =IF(D33="","",VLOOKUP(D33,DropDown!$S$2:$T$28,2,FALSE)) -> 
E34: =IF(D34="","",VLOOKUP(D34,DropDown!$S$2:$T$28,2,FALSE)) -> 
E35: =IF(D35="","",VLOOKUP(D35,DropDown!$S$2:$T$28,2,FALSE)) -> 
E36: =IF(D36="","",VLOOKUP(D36,DropDown!$S$2:$T$28,2,FALSE)) -> 
E37: =IF(D37="","",VLOOKUP(D37,DropDown!$S$2:$T$28,2,FALSE)) -> 
E38: =IF(D38="","",VLOOKUP(D38,DropDown!$S$2:$T$28,2,FALSE)) -> 
E39: =IF(D39="","",VLOOKUP(D39,DropDown!$S$2:$T$28,2,FALSE)) -> 
E40: =IF(D40="","",VLOOKUP(D40,DropDown!$S$2:$T$28,2,FALSE)) -> 
E41: =IF(D41="","",VLOOKUP(D41,DropDown!$S$2:$T$28,2,FALSE)) -> 
E42: =IF(D42="","",VLOOKUP(D42,DropDown!$S$2:$T$28,2,FALSE)) -> 
E43: =IF(D43="","",VLOOKUP(D43,DropDown!$S$2:$T$28,2,FALSE)) -> 
E44: =IF(D44="","",VLOOKUP(D44,DropDown!$S$2:$T$28,2,FALSE)) -> 
E45: =IF(D45="","",VLOOKUP(D45,DropDown!$S$2:$T$28,2,FALSE)) -> 
E46: =IF(D46="","",VLOOKUP(D46,DropDown!$S$2:$T$28,2,FALSE)) -> 
E47: =IF(D47="","",VLOOKUP(D47,DropDown!$S$2:$T$28,2,FALSE)) -> 
E48: =IF(D48="","",VLOOKUP(D48,DropDown!$S$2:$T$28,2,FALSE)) -> 
E49: =IF(D49="","",VLOOKUP(D49,DropDown!$S$2:$T$28,2,FALSE)) -> 
E50: =IF(D50="","",VLOOKUP(D50,DropDown!$S$2:$T$28,2,FALSE)) -> 
E51: =IF(D51="","",VLOOKUP(D51,DropDown!$S$2:$T$28,2,FALSE)) -> 
E52: =IF(D52="","",VLOOKUP(D52,DropDown!$S$2:$T$28,2,FALSE)) -> 
E53: =IF(D53="","",VLOOKUP(D53,DropDown!$S$2:$T$28,2,FALSE)) -> 
E54: =IF(D54="","",VLOOKUP(D54,DropDown!$S$2:$T$28,2,FALSE)) -> 
E55: =IF(D55="","",VLOOKUP(D55,DropDown!$S$2:$T$28,2,FALSE)) -> 
E56: =IF(D56="","",VLOOKUP(D56,DropDown!$S$2:$T$28,2,FALSE)) -> 
E57: =IF(D57="","",VLOOKUP(D57,DropDown!$S$2:$T$28,2,FALSE)) -> 
E58: =IF(D58="","",VLOOKUP(D58,DropDown!$S$2:$T$28,2,FALSE)) -> 
E59: =IF(D59="","",VLOOKUP(D59,DropDown!$S$2:$T$28,2,FALSE)) -> 
E60: =IF(D60="","",VLOOKUP(D60,DropDown!$S$2:$T$28,2,FALSE)) -> 
E61: =IF(D61="","",VLOOKUP(D61,DropDown!$S$2:$T$28,2,FALSE)) -> 
E62: =IF(D62="","",VLOOKUP(D62,DropDown!$S$2:$T$28,2,FALSE)) -> 
B65: Current Organization-Wide Stationary Source Combustion by Fuel Type | H65: Future Organization-Wide Stationary Source Combustion by Fuel Type
B66: Fuel Type | D66: Quantity | E66: Units | H66: Fuel Type | J66: Quantity | K66: Units
D67: Combusted | J67: Combusted
B68: Coal and Coke - Solid | H68: Coal and Coke - Solid
B69: Anthracite Coal | D69: =SUMIFS($F$20:$F$62,$D$20:$D$62,$B69,$G$20:$G$62,E69)+(SUMIFS($F$20:$F$62,$D$20:$D$62,$B69,$G$20:$G$62,"MMBtu")*(VLOOKUP(B69,'Heat Content'!$A$12:$E$38,4,0))) -> 0 | E69: short ton | H69: Anthracite Coal | J69: =SUMIFS($H$20:$H$62,$D$20:$D$62,$B69,$I$20:$I$62,K69)+(SUMIFS($H$20:$H$62,$D$20:$D$62,$B69,$I$20:$I$62,"MMBtu")*(VLOOKUP(H69,'Heat Content'!$A$12:$E$38,4,0))) -> 0 | K69: short ton
B70: Bituminous Coal | D70: =SUMIFS($F$20:$F$62,$D$20:$D$62,$B70,$G$20:$G$62,E70)+(SUMIFS($F$20:$F$62,$D$20:$D$62,$B70,$G$20:$G$62,"MMBtu")*(VLOOKUP(B70,'Heat Content'!$A$12:$E$38,4,0))) -> 0 | E70: short ton | H70: Bituminous Coal | J70: =SUMIFS($H$20:$H$62,$D$20:$D$62,$B70,$I$20:$I$62,K70)+(SUMIFS($H$20:$H$62,$D$20:$D$62,$B70,$I$20:$I$62,"MMBtu")*(VLOOKUP(H70,'Heat Content'!$A$12:$E$38,4,0))) -> 0 | K70: short ton
B71: Sub-bituminous Coal | D71: =SUMIFS($F$20:$F$62,$D$20:$D$62,$B71,$G$20:$G$62,E71)+(SUMIFS($F$20:$F$62,$D$20:$D$62,$B71,$G$20:$G$62,"MMBtu")*(VLOOKUP(B71,'Heat Content'!$A$12:$E$38,4,0))) -> 0 | E71: short ton | H71: Sub-bituminous Coal | J71: =SUMIFS($H$20:$H$62,$D$20:$D$62,$B71,$I$20:$I$62,K71)+(SUMIFS($H$20:$H$62,$D$20:$D$62,$B71,$I$20:$I$62,"MMBtu")*(VLOOKUP(H71,'Heat Content'!$A$12:$E$38,4,0))) -> 0 | K71: short ton
B72: Lignite Coal | D72: =SUMIFS($F$20:$F$62,$D$20:$D$62,$B72,$G$20:$G$62,E72)+(SUMIFS($F$20:$F$62,$D$20:$D$62,$B72,$G$20:$G$62,"MMBtu")*(VLOOKUP(B72,'Heat Content'!$A$12:$E$38,4,0))) -> 0 | E72: short ton | H72: Lignite Coal | J72: =SUMIFS($H$20:$H$62,$D$20:$D$62,$B72,$I$20:$I$62,K72)+(SUMIFS($H$20:$H$62,$D$20:$D$62,$B72,$I$20:$I$62,"MMBtu")*(VLOOKUP(H72,'Heat Content'!$A$12:$E$38,4,0))) -> 0 | K72: short ton
B73: Mixed (Commercial Sector) | D73: =SUMIFS($F$20:$F$62,$D$20:$D$62,$B73,$G$20:$G$62,E73)+(SUMIFS($F$20:$F$62,$D$20:$D$62,$B73,$G$20:$G$62,"MMBtu")*(VLOOKUP(B73,'Heat Content'!$A$12:$E$38,4,0))) -> 0 | E73: short ton | H73: Mixed (Commercial Sector) | J73: =SUMIFS($H$20:$H$62,$D$20:$D$62,$B73,$I$20:$I$62,K73)+(SUMIFS($H$20:$H$62,$D$20:$D$62,$B73,$I$20:$I$62,"MMBtu")*(VLOOKUP(H73,'Heat Content'!$A$12:$E$38,4,0))) -> 0 | K73: short ton
B74: Mixed (Electric Power Sector) | D74: =SUMIFS($F$20:$F$62,$D$20:$D$62,$B74,$G$20:$G$62,E74)+(SUMIFS($F$20:$F$62,$D$20:$D$62,$B74,$G$20:$G$62,"MMBtu")*(VLOOKUP(B74,'Heat Content'!$A$12:$E$38,4,0))) -> 0 | E74: short ton | H74: Mixed (Electric Power Sector) | J74: =SUMIFS($H$20:$H$62,$D$20:$D$62,$B74,$I$20:$I$62,K74)+(SUMIFS($H$20:$H$62,$D$20:$D$62,$B74,$I$20:$I$62,"MMBtu")*(VLOOKUP(H74,'Heat Content'!$A$12:$E$38,4,0))) -> 0 | K74: short ton
B75: Mixed (Industrial Coking) | D75: =SUMIFS($F$20:$F$62,$D$20:$D$62,$B75,$G$20:$G$62,E75)+(SUMIFS($F$20:$F$62,$D$20:$D$62,$B75,$G$20:$G$62,"MMBtu")*(VLOOKUP(B75,'Heat Content'!$A$12:$E$38,4,0))) -> 0 | E75: short ton | H75: Mixed (Industrial Coking) | J75: =SUMIFS($H$20:$H$62,$D$20:$D$62,$B75,$I$20:$I$62,K75)+(SUMIFS($H$20:$H$62,$D$20:$D$62,$B75,$I$20:$I$62,"MMBtu")*(VLOOKUP(H75,'Heat Content'!$A$12:$E$38,4,0))) -> 0 | K75: short ton
B76: Mixed (Industrial Sector) | D76: =SUMIFS($F$20:$F$62,$D$20:$D$62,$B76,$G$20:$G$62,E76)+(SUMIFS($F$20:$F$62,$D$20:$D$62,$B76,$G$20:$G$62,"MMBtu")*(VLOOKUP(B76,'Heat Content'!$A$12:$E$38,4,0))) -> 0 | E76: short ton | H76: Mixed (Industrial Sector) | J76: =SUMIFS($H$20:$H$62,$D$20:$D$62,$B76,$I$20:$I$62,K76)+(SUMIFS($H$20:$H$62,$D$20:$D$62,$B76,$I$20:$I$62,"MMBtu")*(VLOOKUP(H76,'Heat Content'!$A$12:$E$38,4,0))) -> 0 | K76: short ton
B77: Coal Coke | D77: =SUMIFS($F$20:$F$62,$D$20:$D$62,$B77,$G$20:$G$62,E77)+(SUMIFS($F$20:$F$62,$D$20:$D$62,$B77,$G$20:$G$62,"MMBtu")*(VLOOKUP(B77,'Heat Content'!$A$12:$E$38,4,0))) -> 0 | E77: short ton | H77: Coal Coke | J77: =SUMIFS($H$20:$H$62,$D$20:$D$62,$B77,$I$20:$I$62,K77)+(SUMIFS($H$20:$H$62,$D$20:$D$62,$B77,$I$20:$I$62,"MMBtu")*(VLOOKUP(H77,'Heat Content'!$A$12:$E$38,4,0))) -> 0 | K77: short ton
B78: Other Fuels - Solid | H78: Other Fuels - Solid
B79: Municipal Solid Waste | D79: =SUMIFS($F$20:$F$62,$D$20:$D$62,$B79,$G$20:$G$62,E79)+(SUMIFS($F$20:$F$62,$D$20:$D$62,$B79,$G$20:$G$62,"MMBtu")*(VLOOKUP(B79,'Heat Content'!$A$12:$E$38,4,0))) -> 0 | E79: short ton | H79: Municipal Solid Waste | J79: =SUMIFS($H$20:$H$62,$D$20:$D$62,$B79,$I$20:$I$62,K79)+(SUMIFS($H$20:$H$62,$D$20:$D$62,$B79,$I$20:$I$62,"MMBtu")*(VLOOKUP(H79,'Heat Content'!$A$12:$E$38,4,0))) -> 0 | K79: short ton
B80: Petroleum Coke (Solid) | D80: =SUMIFS($F$20:$F$62,$D$20:$D$62,$B80,$G$20:$G$62,E80)+(SUMIFS($F$20:$F$62,$D$20:$D$62,$B80,$G$20:$G$62,"MMBtu")*(VLOOKUP(B80,'Heat Content'!$A$12:$E$38,4,0))) -> 0 | E80: short ton | H80: Petroleum Coke (Solid) | J80: =SUMIFS($H$20:$H$62,$D$20:$D$62,$B80,$I$20:$I$62,K80)+(SUMIFS($H$20:$H$62,$D$20:$D$62,$B80,$I$20:$I$62,"MMBtu")*(VLOOKUP(H80,'Heat Content'!$A$12:$E$38,4,0))) -> 0 | K80: short ton
B81: Plastics | D81: =SUMIFS($F$20:$F$62,$D$20:$D$62,$B81,$G$20:$G$62,E81)+(SUMIFS($F$20:$F$62,$D$20:$D$62,$B81,$G$20:$G$62,"MMBtu")*(VLOOKUP(B81,'Heat Content'!$A$12:$E$38,4,0))) -> 0 | E81: short ton | H81: Plastics | J81: =SUMIFS($H$20:$H$62,$D$20:$D$62,$B81,$I$20:$I$62,K81)+(SUMIFS($H$20:$H$62,$D$20:$D$62,$B81,$I$20:$I$62,"MMBtu")*(VLOOKUP(H81,'Heat Content'!$A$12:$E$38,4,0))) -> 0 | K81: short ton
B82: Tires | D82: =SUMIFS($F$20:$F$62,$D$20:$D$62,$B82,$G$20:$G$62,E82)+(SUMIFS($F$20:$F$62,$D$20:$D$62,$B82,$G$20:$G$62,"MMBtu")*(VLOOKUP(B82,'Heat Content'!$A$12:$E$38,4,0))) -> 0 | E82: short ton | H82: Tires | J82: =SUMIFS($H$20:$H$62,$D$20:$D$62,$B82,$I$20:$I$62,K82)+(SUMIFS($H$20:$H$62,$D$20:$D$62,$B82,$I$20:$I$62,"MMBtu")*(VLOOKUP(H82,'Heat Content'!$A$12:$E$38,4,0))) -> 0 | K82: short ton
B83: Biomass Fuels - Solid | H83: Biomass Fuels - Solid
B84: Agricultural Byproducts | D84: =SUMIFS($F$20:$F$62,$D$20:$D$62,$B84,$G$20:$G$62,E84)+(SUMIFS($F$20:$F$62,$D$20:$D$62,$B84,$G$20:$G$62,"MMBtu")*(VLOOKUP(B84,'Heat Content'!$A$12:$E$38,4,0))) -> 0 | E84: short ton | H84: Agricultural Byproducts | J84: =SUMIFS($H$20:$H$62,$D$20:$D$62,$B84,$I$20:$I$62,K84)+(SUMIFS($H$20:$H$62,$D$20:$D$62,$B84,$I$20:$I$62,"MMBtu")*(VLOOKUP(H84,'Heat Content'!$A$12:$E$38,4,0))) -> 0 | K84: short ton
B85: Peat | D85: =SUMIFS($F$20:$F$62,$D$20:$D$62,$B85,$G$20:$G$62,E85)+(SUMIFS($F$20:$F$62,$D$20:$D$62,$B85,$G$20:$G$62,"MMBtu")*(VLOOKUP(B85,'Heat Content'!$A$12:$E$38,4,0))) -> 0 | E85: short ton | H85: Peat | J85: =SUMIFS($H$20:$H$62,$D$20:$D$62,$B85,$I$20:$I$62,K85)+(SUMIFS($H$20:$H$62,$D$20:$D$62,$B85,$I$20:$I$62,"MMBtu")*(VLOOKUP(H85,'Heat Content'!$A$12:$E$38,4,0))) -> 0 | K85: short ton
B86: Solid Byproducts | D86: =SUMIFS($F$20:$F$62,$D$20:$D$62,$B86,$G$20:$G$62,E86)+(SUMIFS($F$20:$F$62,$D$20:$D$62,$B86,$G$20:$G$62,"MMBtu")*(VLOOKUP(B86,'Heat Content'!$A$12:$E$38,4,0))) -> 0 | E86: short ton | H86: Solid Byproducts | J86: =SUMIFS($H$20:$H$62,$D$20:$D$62,$B86,$I$20:$I$62,K86)+(SUMIFS($H$20:$H$62,$D$20:$D$62,$B86,$I$20:$I$62,"MMBtu")*(VLOOKUP(H86,'Heat Content'!$A$12:$E$38,4,0))) -> 0 | K86: short ton
B87: Wood and Wood Residuals | D87: =SUMIFS($F$20:$F$62,$D$20:$D$62,$B87,$G$20:$G$62,E87)+(SUMIFS($F$20:$F$62,$D$20:$D$62,$B87,$G$20:$G$62,"MMBtu")*(VLOOKUP(B87,'Heat Content'!$A$12:$E$38,4,0))) -> 0 | E87: short ton | H87: Wood and Wood Residuals | J87: =SUMIFS($H$20:$H$62,$D$20:$D$62,$B87,$I$20:$I$62,K87)+(SUMIFS($H$20:$H$62,$D$20:$D$62,$B87,$I$20:$I$62,"MMBtu")*(VLOOKUP(H87,'Heat Content'!$A$12:$E$38,4,0))) -> 0 | K87: short ton
B88: Gaseous Fuels | H88: Gaseous Fuels
B89: Natural Gas | D89: =SUMIFS($F$20:$F$62,$D$20:$D$62,$B89,$G$20:$G$62,E89)+(SUMIFS($F$20:$F$62,$D$20:$D$62,$B89,$G$20:$G$62,"MMBtu")*Natural_Gas_scf_per_mmBtu)+(SUMIFS($F$20:$F$62,$D$20:$D$62,$B89,$G$20:$G$62,"Therm")*Natural_Gas_scf_per_therm) -> 0 | E89: scf | H89: Natural Gas | J89: =SUMIFS($H$20:$H$62,$D$20:$D$62,$B89,$I$20:$I$62,K89)+(SUMIFS($H$20:$H$62,$D$20:$D$62,$B89,$I$20:$I$62,"MMBtu")*Natural_Gas_scf_per_mmBtu)+(SUMIFS($H$20:$H$62,$D$20:$D$62,$B89,$I$20:$I$62,"Therm")*Natural_Gas_scf_per_therm) -> 0 | K89: scf
B90: Propane Gas | D90: =SUMIFS($F$20:$F$62,$D$20:$D$62,$B90,$G$20:$G$62,E90)+(SUMIFS($F$20:$F$62,$D$20:$D$62,$B90,$G$20:$G$62,"MMBtu")*Propane_Gas_scf_per_mmBtu)+(SUMIFS($F$20:$F$62,$D$20:$D$62,$B90,$G$20:$G$62,"Therm")*Propane_Gas_scf_per_therm) -> 0 | E90: scf | H90: Propane Gas | J90: =SUMIFS($H$20:$H$62,$D$20:$D$62,$B90,$G$20:$G$62,K90)+(SUMIFS($F$20:$F$62,$D$20:$D$62,$B90,$I$20:$I$62,"MMBtu")*Propane_Gas_scf_per_mmBtu)+(SUMIFS($H$20:$H$62,$D$20:$D$62,$B90,$I$20:$I$62,"Therm")*Propane_Gas_scf_per_therm) -> 0 | K90: scf
B91: Landfill Gas | D91: =SUMIFS($F$20:$F$62,$D$20:$D$62,$B91,$G$20:$G$62,E91)+(SUMIFS($F$20:$F$62,$D$20:$D$62,$B91,$G$20:$G$62,"MMBtu")*Landfill_Gas_scf_per_mmBtu)+(SUMIFS($F$20:$F$62,$D$20:$D$62,$B91,$G$20:$G$62,"Therm")*Landfill_Gas_scf_per_therm) -> 0 | E91: scf | H91: Landfill Gas | J91: =SUMIFS($H$20:$H$62,$D$20:$D$62,$B91,$I$20:$I$62,K91)+(SUMIFS($H$20:$H$62,$D$20:$D$62,$B91,$I$20:$I$62,"MMBtu")*Landfill_Gas_scf_per_mmBtu)+(SUMIFS($H$20:$H$62,$D$20:$D$62,$B91,$I$20:$I$62,"Therm")*Landfill_Gas_scf_per_therm) -> 0 | K91: scf
B92: Petroleum Products | H92: Petroleum Products
B93: Distillate Fuel Oil No. 2 | D93: =SUMIFS($F$20:$F$62,$D$20:$D$62,$B93,$G$20:$G$62,E93)+(SUMIFS($F$20:$F$62,$D$20:$D$62,$B93,$G$20:$G$62,"MMBtu")*(VLOOKUP(B93,'Heat Content'!$A$12:$E$38,4,0))) -> 0 | E93: gallons | H93: Distillate Fuel Oil No. 2 | J93: =SUMIFS($H$20:$H$62,$D$20:$D$62,$B93,$I$20:$I$62,K93)+(SUMIFS($H$20:$H$62,$D$20:$D$62,$B93,$I$20:$I$62,"MMBtu")*(VLOOKUP(H93,'Heat Content'!$A$12:$E$38,4,0))) -> 0 | K93: gallons
B94: Residual Fuel Oil No. 6 | D94: =SUMIFS($F$20:$F$62,$D$20:$D$62,$B94,$G$20:$G$62,E94)+(SUMIFS($F$20:$F$62,$D$20:$D$62,$B94,$G$20:$G$62,"MMBtu")*(VLOOKUP(B94,'Heat Content'!$A$12:$E$38,4,0))) -> 0 | E94: gallons | H94: Residual Fuel Oil No. 6 | J94: =SUMIFS($H$20:$H$62,$D$20:$D$62,$B94,$I$20:$I$62,K94)+(SUMIFS($H$20:$H$62,$D$20:$D$62,$B94,$I$20:$I$62,"MMBtu")*(VLOOKUP(H94,'Heat Content'!$A$12:$E$38,4,0))) -> 0 | K94: gallons
B95: Kerosene | D95: =SUMIFS($F$20:$F$62,$D$20:$D$62,$B95,$G$20:$G$62,E95)+(SUMIFS($F$20:$F$62,$D$20:$D$62,$B95,$G$20:$G$62,"MMBtu")*(VLOOKUP(B95,'Heat Content'!$A$12:$E$38,4,0))) -> 0 | E95: gallons | H95: Kerosene | J95: =SUMIFS($H$20:$H$62,$D$20:$D$62,$B95,$I$20:$I$62,K95)+(SUMIFS($H$20:$H$62,$D$20:$D$62,$B95,$I$20:$I$62,"MMBtu")*(VLOOKUP(H95,'Heat Content'!$A$12:$E$38,4,0))) -> 0 | K95: gallons
B96: Liquefied Petroleum Gases (LPG) | D96: =SUMIFS($F$20:$F$62,$D$20:$D$62,$B96,$G$20:$G$62,E96)+(SUMIFS($F$20:$F$62,$D$20:$D$62,$B96,$G$20:$G$62,"MMBtu")*(VLOOKUP(B96,'Heat Content'!$A$12:$E$38,4,0))) -> 0 | E96: gallons | H96: Liquefied Petroleum Gases (LPG) | J96: =SUMIFS($H$20:$H$62,$D$20:$D$62,$B96,$I$20:$I$62,K96)+(SUMIFS($H$20:$H$62,$D$20:$D$62,$B96,$I$20:$I$62,"MMBtu")*(VLOOKUP(H96,'Heat Content'!$A$12:$E$38,4,0))) -> 0 | K96: gallons
B97: Biomass Fuels - Liquid | H97: Biomass Fuels - Liquid
B98: Biodiesel (100%) | D98: =SUMIFS($F$20:$F$62,$D$20:$D$62,$B98,$G$20:$G$62,E98)+(SUMIFS($F$20:$F$62,$D$20:$D$62,$B98,$G$20:$G$62,"MMBtu")*(VLOOKUP(B98,'Heat Content'!$A$12:$E$38,4,0))) -> 0 | E98: gallons | H98: Biodiesel (100%) | J98: =SUMIFS($H$20:$H$62,$D$20:$D$62,$B98,$I$20:$I$62,K98)+(SUMIFS($H$20:$H$62,$D$20:$D$62,$B98,$I$20:$I$62,"MMBtu")*(VLOOKUP(H98,'Heat Content'!$A$12:$E$38,4,0))) -> 0 | K98: gallons
B99: Ethanol (100%) | D99: =SUMIFS($F$20:$F$62,$D$20:$D$62,$B99,$G$20:$G$62,E99)+(SUMIFS($F$20:$F$62,$D$20:$D$62,$B99,$G$20:$G$62,"MMBtu")*(VLOOKUP(B99,'Heat Content'!$A$12:$E$38,4,0))) -> 0 | E99: gallons | H99: Ethanol (100%) | J99: =SUMIFS($H$20:$H$62,$D$20:$D$62,$B99,$I$20:$I$62,K99)+(SUMIFS($H$20:$H$62,$D$20:$D$62,$B99,$I$20:$I$62,"MMBtu")*(VLOOKUP(H99,'Heat Content'!$A$12:$E$38,4,0))) -> 0 | K99: gallons
B100: Vegetable Oil | D100: =SUMIFS($F$20:$F$62,$D$20:$D$62,$B100,$G$20:$G$62,E100)+(SUMIFS($F$20:$F$62,$D$20:$D$62,$B100,$G$20:$G$62,"MMBtu")*(VLOOKUP(B100,'Heat Content'!$A$12:$E$38,4,0))) -> 0 | E100: gallons | H100: Vegetable Oil | J100: =SUMIFS($H$20:$H$62,$D$20:$D$62,$B100,$I$20:$I$62,K100)+(SUMIFS($H$20:$H$62,$D$20:$D$62,$B100,$I$20:$I$62,"MMBtu")*(VLOOKUP(H100,'Heat Content'!$A$12:$E$38,4,0))) -> 0 | K100: gallons
B102: Current Organization-Wide CO2, CH4 and N2O Emissions from Stationary Source Fuel Combustion | H102: Future Organization-Wide CO2, CH4 and N2O Emissions from Stationary Source Fuel Combustion
B103: Fuel Type | D103: CO2 (kg) | E103: CH4 (g) | F103: N2O (g) | H103: Fuel Type | J103: CO2 (kg) | K103: CH4 (g) | L103: N2O (g)
B104: Coal and Coke - Solid | H104: Coal and Coke - Solid
B105: Anthracite Coal | D105: =_xlfn.XLOOKUP($B105,$B$69:$B$100,$D$69:$D$100)*VLOOKUP($B105,Stationary_Fuel_Fctrs_unit,5,FALSE) -> 0 | E105: =_xlfn.XLOOKUP($B105,$B$69:$B$100,$D$69:$D$100)*VLOOKUP($B105,Stationary_Fuel_Fctrs_unit,6,FALSE) -> 0 | F105: =_xlfn.XLOOKUP($B105,$B$69:$B$100,$D$69:$D$100)*VLOOKUP($B105,Stationary_Fuel_Fctrs_unit,7,FALSE) -> 0 | H105: Anthracite Coal | J105: =_xlfn.XLOOKUP($H105,$H$69:$H$100,$J$69:$J$100)*VLOOKUP($B105,Stationary_Fuel_Fctrs_unit,5,FALSE) -> 0 | K105: =_xlfn.XLOOKUP($H105,$H$69:$H$100,$J$69:$J$100)*VLOOKUP($B105,Stationary_Fuel_Fctrs_unit,6,FALSE) -> 0 | L105: =_xlfn.XLOOKUP($H105,$H$69:$H$100,$J$69:$J$100)*VLOOKUP($B105,Stationary_Fuel_Fctrs_unit,7,FALSE) -> 0
B106: Bituminous Coal | D106: 0 | E106: 0 | F106: 0 | H106: Bituminous Coal | J106: 0 | K106: 0 | L106: 0
B107: Sub-bituminous Coal | D107: 0 | E107: 0 | F107: 0 | H107: Sub-bituminous Coal | J107: 0 | K107: 0 | L107: 0
B108: Lignite Coal | D108: 0 | E108: 0 | F108: 0 | H108: Lignite Coal | J108: 0 | K108: 0 | L108: 0
B109: Mixed (Commercial Sector) | D109: 0 | E109: 0 | F109: 0 | H109: Mixed (Commercial Sector) | J109: 0 | K109: 0 | L109: 0
B110: Mixed (Electric Power Sector) | D110: 0 | E110: 0 | F110: 0 | H110: Mixed (Electric Power Sector) | J110: 0 | K110: 0 | L110: 0
B111: Mixed (Industrial Coking) | D111: 0 | E111: 0 | F111: 0 | H111: Mixed (Industrial Coking) | J111: 0 | K111: 0 | L111: 0
B112: Mixed (Industrial Sector) | D112: 0 | E112: 0 | F112: 0 | H112: Mixed (Industrial Sector) | J112: 0 | K112: 0 | L112: 0
B113: Coal Coke | D113: 0 | E113: 0 | F113: 0 | H113: Coal Coke | J113: 0 | K113: 0 | L113: 0
B114: Other Fuels - Solid | H114: Other Fuels - Solid
B115: Municipal Solid Waste | D115: =_xlfn.XLOOKUP($B115,$B$69:$B$100,$D$69:$D$100)*VLOOKUP($B115,Stationary_Fuel_Fctrs_unit,5,FALSE) -> 0 | E115: =_xlfn.XLOOKUP($B115,$B$69:$B$100,$D$69:$D$100)*VLOOKUP($B115,Stationary_Fuel_Fctrs_unit,6,FALSE) -> 0 | F115: =_xlfn.XLOOKUP($B115,$B$69:$B$100,$D$69:$D$100)*VLOOKUP($B115,Stationary_Fuel_Fctrs_unit,7,FALSE) -> 0 | H115: Municipal Solid Waste | J115: =_xlfn.XLOOKUP($H115,$H$69:$H$100,$J$69:$J$100)*VLOOKUP($B115,Stationary_Fuel_Fctrs_unit,5,FALSE) -> 0 | K115: =_xlfn.XLOOKUP($H115,$H$69:$H$100,$J$69:$J$100)*VLOOKUP($B115,Stationary_Fuel_Fctrs_unit,6,FALSE) -> 0 | L115: =_xlfn.XLOOKUP($H115,$H$69:$H$100,$J$69:$J$100)*VLOOKUP($B115,Stationary_Fuel_Fctrs_unit,7,FALSE) -> 0
B116: Petroleum Coke (Solid) | D116: =_xlfn.XLOOKUP($B116,$B$69:$B$100,$D$69:$D$100)*VLOOKUP($B116,Stationary_Fuel_Fctrs_unit,5,FALSE) -> 0 | E116: =_xlfn.XLOOKUP($B116,$B$69:$B$100,$D$69:$D$100)*VLOOKUP($B116,Stationary_Fuel_Fctrs_unit,6,FALSE) -> 0 | F116: =_xlfn.XLOOKUP($B116,$B$69:$B$100,$D$69:$D$100)*VLOOKUP($B116,Stationary_Fuel_Fctrs_unit,7,FALSE) -> 0 | H116: Petroleum Coke (Solid) | J116: =_xlfn.XLOOKUP($H116,$H$69:$H$100,$J$69:$J$100)*VLOOKUP($B116,Stationary_Fuel_Fctrs_unit,5,FALSE) -> 0 | K116: =_xlfn.XLOOKUP($H116,$H$69:$H$100,$J$69:$J$100)*VLOOKUP($B116,Stationary_Fuel_Fctrs_unit,6,FALSE) -> 0 | L116: =_xlfn.XLOOKUP($H116,$H$69:$H$100,$J$69:$J$100)*VLOOKUP($B116,Stationary_Fuel_Fctrs_unit,7,FALSE) -> 0
B117: Plastics | D117: =_xlfn.XLOOKUP($B117,$B$69:$B$100,$D$69:$D$100)*VLOOKUP($B117,Stationary_Fuel_Fctrs_unit,5,FALSE) -> 0 | E117: =_xlfn.XLOOKUP($B117,$B$69:$B$100,$D$69:$D$100)*VLOOKUP($B117,Stationary_Fuel_Fctrs_unit,6,FALSE) -> 0 | F117: =_xlfn.XLOOKUP($B117,$B$69:$B$100,$D$69:$D$100)*VLOOKUP($B117,Stationary_Fuel_Fctrs_unit,7,FALSE) -> 0 | H117: Plastics | J117: =_xlfn.XLOOKUP($H117,$H$69:$H$100,$J$69:$J$100)*VLOOKUP($B117,Stationary_Fuel_Fctrs_unit,5,FALSE) -> 0 | K117: =_xlfn.XLOOKUP($H117,$H$69:$H$100,$J$69:$J$100)*VLOOKUP($B117,Stationary_Fuel_Fctrs_unit,6,FALSE) -> 0 | L117: =_xlfn.XLOOKUP($H117,$H$69:$H$100,$J$69:$J$100)*VLOOKUP($B117,Stationary_Fuel_Fctrs_unit,7,FALSE) -> 0
B118: Tires | D118: =_xlfn.XLOOKUP($B118,$B$69:$B$100,$D$69:$D$100)*VLOOKUP($B118,Stationary_Fuel_Fctrs_unit,5,FALSE) -> 0 | E118: =_xlfn.XLOOKUP($B118,$B$69:$B$100,$D$69:$D$100)*VLOOKUP($B118,Stationary_Fuel_Fctrs_unit,6,FALSE) -> 0 | F118: =_xlfn.XLOOKUP($B118,$B$69:$B$100,$D$69:$D$100)*VLOOKUP($B118,Stationary_Fuel_Fctrs_unit,7,FALSE) -> 0 | H118: Tires | J118: =_xlfn.XLOOKUP($H118,$H$69:$H$100,$J$69:$J$100)*VLOOKUP($B118,Stationary_Fuel_Fctrs_unit,5,FALSE) -> 0 | K118: =_xlfn.XLOOKUP($H118,$H$69:$H$100,$J$69:$J$100)*VLOOKUP($B118,Stationary_Fuel_Fctrs_unit,6,FALSE) -> 0 | L118: =_xlfn.XLOOKUP($H118,$H$69:$H$100,$J$69:$J$100)*VLOOKUP($B118,Stationary_Fuel_Fctrs_unit,7,FALSE) -> 0
B119: Gaseous Fuels | H119: Gaseous Fuels
B120: Natural Gas | D120: =_xlfn.XLOOKUP($B120,$B$69:$B$100,$D$69:$D$100)*VLOOKUP($B120,Stationary_Fuel_Fctrs_unit,5,FALSE) -> 0 | E120: =_xlfn.XLOOKUP($B120,$B$69:$B$100,$D$69:$D$100)*VLOOKUP($B120,Stationary_Fuel_Fctrs_unit,6,FALSE) -> 0 | F120: =_xlfn.XLOOKUP($B120,$B$69:$B$100,$D$69:$D$100)*VLOOKUP($B120,Stationary_Fuel_Fctrs_unit,7,FALSE) -> 0 | H120: Natural Gas | J120: =_xlfn.XLOOKUP($H120,$H$69:$H$100,$J$69:$J$100)*VLOOKUP($B120,Stationary_Fuel_Fctrs_unit,5,FALSE) -> 0 | K120: =_xlfn.XLOOKUP($H120,$H$69:$H$100,$J$69:$J$100)*VLOOKUP($B120,Stationary_Fuel_Fctrs_unit,6,FALSE) -> 0 | L120: =_xlfn.XLOOKUP($H120,$H$69:$H$100,$J$69:$J$100)*VLOOKUP($B120,Stationary_Fuel_Fctrs_unit,7,FALSE) -> 0
B121: Propane Gas | D121: =_xlfn.XLOOKUP($B121,$B$69:$B$100,$D$69:$D$100)*VLOOKUP($B121,Stationary_Fuel_Fctrs_unit,5,FALSE) -> 0 | E121: =_xlfn.XLOOKUP($B121,$B$69:$B$100,$D$69:$D$100)*VLOOKUP($B121,Stationary_Fuel_Fctrs_unit,6,FALSE) -> 0 | F121: =_xlfn.XLOOKUP($B121,$B$69:$B$100,$D$69:$D$100)*VLOOKUP($B121,Stationary_Fuel_Fctrs_unit,7,FALSE) -> 0 | H121: Propane Gas | J121: =_xlfn.XLOOKUP($H121,$H$69:$H$100,$J$69:$J$100)*VLOOKUP($B121,Stationary_Fuel_Fctrs_unit,5,FALSE) -> 0 | K121: =_xlfn.XLOOKUP($H121,$H$69:$H$100,$J$69:$J$100)*VLOOKUP($B121,Stationary_Fuel_Fctrs_unit,6,FALSE) -> 0 | L121: =_xlfn.XLOOKUP($H121,$H$69:$H$100,$J$69:$J$100)*VLOOKUP($B121,Stationary_Fuel_Fctrs_unit,7,FALSE) -> 0
B122: Landfill Gas | D122: =_xlfn.XLOOKUP($B122,$B$69:$B$100,$D$69:$D$100)*VLOOKUP($B122,Stationary_Fuel_Fctrs_unit,5,FALSE) -> 0 | E122: =_xlfn.XLOOKUP($B122,$B$69:$B$100,$D$69:$D$100)*VLOOKUP($B122,Stationary_Fuel_Fctrs_unit,6,FALSE) -> 0 | F122: =_xlfn.XLOOKUP($B122,$B$69:$B$100,$D$69:$D$100)*VLOOKUP($B122,Stationary_Fuel_Fctrs_unit,7,FALSE) -> 0 | H122: Landfill Gas | J122: =_xlfn.XLOOKUP($H122,$H$69:$H$100,$J$69:$J$100)*VLOOKUP($B122,Stationary_Fuel_Fctrs_unit,5,FALSE) -> 0 | K122: =_xlfn.XLOOKUP($H122,$H$69:$H$100,$J$69:$J$100)*VLOOKUP($B122,Stationary_Fuel_Fctrs_unit,6,FALSE) -> 0 | L122: =_xlfn.XLOOKUP($H122,$H$69:$H$100,$J$69:$J$100)*VLOOKUP($B122,Stationary_Fuel_Fctrs_unit,7,FALSE) -> 0
B123: Petroleum Products | H123: Petroleum Products
B124: Distillate Fuel Oil No. 2 | D124: =_xlfn.XLOOKUP($B124,$B$69:$B$100,$D$69:$D$100)*VLOOKUP($B124,Stationary_Fuel_Fctrs_unit,5,FALSE) -> 0 | E124: =_xlfn.XLOOKUP($B124,$B$69:$B$100,$D$69:$D$100)*VLOOKUP($B124,Stationary_Fuel_Fctrs_unit,6,FALSE) -> 0 | F124: =_xlfn.XLOOKUP($B124,$B$69:$B$100,$D$69:$D$100)*VLOOKUP($B124,Stationary_Fuel_Fctrs_unit,7,FALSE) -> 0 | H124: Distillate Fuel Oil No. 2 | J124: =_xlfn.XLOOKUP($H124,$H$69:$H$100,$J$69:$J$100)*VLOOKUP($B124,Stationary_Fuel_Fctrs_unit,5,FALSE) -> 0 | K124: =_xlfn.XLOOKUP($H124,$H$69:$H$100,$J$69:$J$100)*VLOOKUP($B124,Stationary_Fuel_Fctrs_unit,6,FALSE) -> 0 | L124: =_xlfn.XLOOKUP($H124,$H$69:$H$100,$J$69:$J$100)*VLOOKUP($B124,Stationary_Fuel_Fctrs_unit,7,FALSE) -> 0
B125: Residual Fuel Oil No. 6 | D125: =_xlfn.XLOOKUP($B125,$B$69:$B$100,$D$69:$D$100)*VLOOKUP($B125,Stationary_Fuel_Fctrs_unit,5,FALSE) -> 0 | E125: =_xlfn.XLOOKUP($B125,$B$69:$B$100,$D$69:$D$100)*VLOOKUP($B125,Stationary_Fuel_Fctrs_unit,6,FALSE) -> 0 | F125: =_xlfn.XLOOKUP($B125,$B$69:$B$100,$D$69:$D$100)*VLOOKUP($B125,Stationary_Fuel_Fctrs_unit,7,FALSE) -> 0 | H125: Residual Fuel Oil No. 6 | J125: =_xlfn.XLOOKUP($H125,$H$69:$H$100,$J$69:$J$100)*VLOOKUP($B125,Stationary_Fuel_Fctrs_unit,5,FALSE) -> 0 | K125: =_xlfn.XLOOKUP($H125,$H$69:$H$100,$J$69:$J$100)*VLOOKUP($B125,Stationary_Fuel_Fctrs_unit,6,FALSE) -> 0 | L125: =_xlfn.XLOOKUP($H125,$H$69:$H$100,$J$69:$J$100)*VLOOKUP($B125,Stationary_Fuel_Fctrs_unit,7,FALSE) -> 0
B126: Kerosene | D126: =_xlfn.XLOOKUP($B126,$B$69:$B$100,$D$69:$D$100)*VLOOKUP($B126,Stationary_Fuel_Fctrs_unit,5,FALSE) -> 0 | E126: =_xlfn.XLOOKUP($B126,$B$69:$B$100,$D$69:$D$100)*VLOOKUP($B126,Stationary_Fuel_Fctrs_unit,6,FALSE) -> 0 | F126: =_xlfn.XLOOKUP($B126,$B$69:$B$100,$D$69:$D$100)*VLOOKUP($B126,Stationary_Fuel_Fctrs_unit,7,FALSE) -> 0 | H126: Kerosene | J126: =_xlfn.XLOOKUP($H126,$H$69:$H$100,$J$69:$J$100)*VLOOKUP($B126,Stationary_Fuel_Fctrs_unit,5,FALSE) -> 0 | K126: =_xlfn.XLOOKUP($H126,$H$69:$H$100,$J$69:$J$100)*VLOOKUP($B126,Stationary_Fuel_Fctrs_unit,6,FALSE) -> 0 | L126: =_xlfn.XLOOKUP($H126,$H$69:$H$100,$J$69:$J$100)*VLOOKUP($B126,Stationary_Fuel_Fctrs_unit,7,FALSE) -> 0
B127: Liquefied Petroleum Gases (LPG) | D127: =_xlfn.XLOOKUP($B127,$B$69:$B$100,$D$69:$D$100)*VLOOKUP($B127,Stationary_Fuel_Fctrs_unit,5,FALSE) -> 0 | E127: =_xlfn.XLOOKUP($B127,$B$69:$B$100,$D$69:$D$100)*VLOOKUP($B127,Stationary_Fuel_Fctrs_unit,6,FALSE) -> 0 | F127: =_xlfn.XLOOKUP($B127,$B$69:$B$100,$D$69:$D$100)*VLOOKUP($B127,Stationary_Fuel_Fctrs_unit,7,FALSE) -> 0 | H127: Liquefied Petroleum Gases (LPG) | J127: =_xlfn.XLOOKUP($H127,$H$69:$H$100,$J$69:$J$100)*VLOOKUP($B127,Stationary_Fuel_Fctrs_unit,5,FALSE) -> 0 | K127: =_xlfn.XLOOKUP($H127,$H$69:$H$100,$J$69:$J$100)*VLOOKUP($B127,Stationary_Fuel_Fctrs_unit,6,FALSE) -> 0 | L127: =_xlfn.XLOOKUP($H127,$H$69:$H$100,$J$69:$J$100)*VLOOKUP($B127,Stationary_Fuel_Fctrs_unit,7,FALSE) -> 0
B128: Total Fossil Fuel Emissions | D128: =SUM(D104:D127) -> 0 | E128: =SUM(E104:E127) -> 0 | F128: 0 | H128: Total Fossil Fuel Emissions | J128: =SUM(J104:J127) -> 0 | K128: =SUM(K104:K127) -> 0 | L128: 0
B129: Biomass Fuels - Solid | H129: Biomass Fuels - Solid
B130: Agricultural Byproducts | D130: =_xlfn.XLOOKUP($B130,$B$69:$B$100,$D$69:$D$100)*VLOOKUP($B130,Stationary_Fuel_Fctrs_unit,5,FALSE) -> 0 | E130: =_xlfn.XLOOKUP($B130,$B$69:$B$100,$D$69:$D$100)*VLOOKUP($B130,Stationary_Fuel_Fctrs_unit,6,FALSE) -> 0 | F130: =_xlfn.XLOOKUP($B130,$B$69:$B$100,$D$69:$D$100)*VLOOKUP($B130,Stationary_Fuel_Fctrs_unit,7,FALSE) -> 0 | H130: Agricultural Byproducts | J130: =_xlfn.XLOOKUP($H130,$H$69:$H$100,$J$69:$J$100)*VLOOKUP($B130,Stationary_Fuel_Fctrs_unit,5,FALSE) -> 0 | K130: =_xlfn.XLOOKUP($H130,$H$69:$H$100,$J$69:$J$100)*VLOOKUP($B130,Stationary_Fuel_Fctrs_unit,6,FALSE) -> 0 | L130: =_xlfn.XLOOKUP($H130,$H$69:$H$100,$J$69:$J$100)*VLOOKUP($B130,Stationary_Fuel_Fctrs_unit,7,FALSE) -> 0
B131: Peat | D131: =_xlfn.XLOOKUP($B131,$B$69:$B$100,$D$69:$D$100)*VLOOKUP($B131,Stationary_Fuel_Fctrs_unit,5,FALSE) -> 0 | E131: =_xlfn.XLOOKUP($B131,$B$69:$B$100,$D$69:$D$100)*VLOOKUP($B131,Stationary_Fuel_Fctrs_unit,6,FALSE) -> 0 | F131: =_xlfn.XLOOKUP($B131,$B$69:$B$100,$D$69:$D$100)*VLOOKUP($B131,Stationary_Fuel_Fctrs_unit,7,FALSE) -> 0 | H131: Peat | J131: =_xlfn.XLOOKUP($H131,$H$69:$H$100,$J$69:$J$100)*VLOOKUP($B131,Stationary_Fuel_Fctrs_unit,5,FALSE) -> 0 | K131: =_xlfn.XLOOKUP($H131,$H$69:$H$100,$J$69:$J$100)*VLOOKUP($B131,Stationary_Fuel_Fctrs_unit,6,FALSE) -> 0 | L131: =_xlfn.XLOOKUP($H131,$H$69:$H$100,$J$69:$J$100)*VLOOKUP($B131,Stationary_Fuel_Fctrs_unit,7,FALSE) -> 0
B132: Solid Byproducts | D132: =_xlfn.XLOOKUP($B132,$B$69:$B$100,$D$69:$D$100)*VLOOKUP($B132,Stationary_Fuel_Fctrs_unit,5,FALSE) -> 0 | E132: =_xlfn.XLOOKUP($B132,$B$69:$B$100,$D$69:$D$100)*VLOOKUP($B132,Stationary_Fuel_Fctrs_unit,6,FALSE) -> 0 | F132: =_xlfn.XLOOKUP($B132,$B$69:$B$100,$D$69:$D$100)*VLOOKUP($B132,Stationary_Fuel_Fctrs_unit,7,FALSE) -> 0 | H132: Solid Byproducts | J132: =_xlfn.XLOOKUP($H132,$H$69:$H$100,$J$69:$J$100)*VLOOKUP($B132,Stationary_Fuel_Fctrs_unit,5,FALSE) -> 0 | K132: =_xlfn.XLOOKUP($H132,$H$69:$H$100,$J$69:$J$100)*VLOOKUP($B132,Stationary_Fuel_Fctrs_unit,6,FALSE) -> 0 | L132: =_xlfn.XLOOKUP($H132,$H$69:$H$100,$J$69:$J$100)*VLOOKUP($B132,Stationary_Fuel_Fctrs_unit,7,FALSE) -> 0
B133: Wood and Wood Residuals | D133: =_xlfn.XLOOKUP($B133,$B$69:$B$100,$D$69:$D$100)*VLOOKUP($B133,Stationary_Fuel_Fctrs_unit,5,FALSE) -> 0 | E133: =_xlfn.XLOOKUP($B133,$B$69:$B$100,$D$69:$D$100)*VLOOKUP($B133,Stationary_Fuel_Fctrs_unit,6,FALSE) -> 0 | F133: =_xlfn.XLOOKUP($B133,$B$69:$B$100,$D$69:$D$100)*VLOOKUP($B133,Stationary_Fuel_Fctrs_unit,7,FALSE) -> 0 | H133: Wood and Wood Residuals | J133: =_xlfn.XLOOKUP($H133,$H$69:$H$100,$J$69:$J$100)*VLOOKUP($B133,Stationary_Fuel_Fctrs_unit,5,FALSE) -> 0 | K133: =_xlfn.XLOOKUP($H133,$H$69:$H$100,$J$69:$J$100)*VLOOKUP($B133,Stationary_Fuel_Fctrs_unit,6,FALSE) -> 0 | L133: =_xlfn.XLOOKUP($H133,$H$69:$H$100,$J$69:$J$100)*VLOOKUP($B133,Stationary_Fuel_Fctrs_unit,7,FALSE) -> 0
B134: Biomass Fuels - Liquid | H134: Biomass Fuels - Liquid
B135: Biodiesel (100%) | D135: =$D98*VLOOKUP($B135,Stationary_Fuel_Fctrs_unit,5,FALSE) -> 0 | E135: =$D98*VLOOKUP($B135,Stationary_Fuel_Fctrs_unit,6,FALSE) -> 0 | F135: =$D98*VLOOKUP($B135,Stationary_Fuel_Fctrs_unit,7,FALSE) -> 0 | H135: Biodiesel (100%) | J135: =$J98*VLOOKUP($H135,Stationary_Fuel_Fctrs_unit,5,FALSE) -> 0 | K135: =$J98*VLOOKUP($H135,Stationary_Fuel_Fctrs_unit,6,FALSE) -> 0 | L135: =$J98*VLOOKUP($H135,Stationary_Fuel_Fctrs_unit,7,FALSE) -> 0
B136: Ethanol (100%) | D136: =$D99*VLOOKUP($B136,Stationary_Fuel_Fctrs_unit,5,FALSE) -> 0 | E136: =$D99*VLOOKUP($B136,Stationary_Fuel_Fctrs_unit,6,FALSE) -> 0 | F136: =$D99*VLOOKUP($B136,Stationary_Fuel_Fctrs_unit,7,FALSE) -> 0 | H136: Ethanol (100%) | J136: =$J99*VLOOKUP($H136,Stationary_Fuel_Fctrs_unit,5,FALSE) -> 0 | K136: =$J99*VLOOKUP($H136,Stationary_Fuel_Fctrs_unit,6,FALSE) -> 0 | L136: =$J99*VLOOKUP($H136,Stationary_Fuel_Fctrs_unit,7,FALSE) -> 0
B137: Vegetable Oil | D137: =$D100*VLOOKUP($B137,Stationary_Fuel_Fctrs_unit,5,FALSE) -> 0 | E137: =$D100*VLOOKUP($B137,Stationary_Fuel_Fctrs_unit,6,FALSE) -> 0 | F137: =$D100*VLOOKUP($B137,Stationary_Fuel_Fctrs_unit,7,FALSE) -> 0 | H137: Vegetable Oil | J137: =$J100*VLOOKUP($H137,Stationary_Fuel_Fctrs_unit,5,FALSE) -> 0 | K137: =$J100*VLOOKUP($H137,Stationary_Fuel_Fctrs_unit,6,FALSE) -> 0 | L137: =$J100*VLOOKUP($H137,Stationary_Fuel_Fctrs_unit,7,FALSE) -> 0
B138: Total Non-Fossil Fuel Emissions | D138: =SUM(D130:D137) -> 0 | E138: =SUM(E130:E137) -> 0 | F138: =SUM(F130:F137) -> 0 | H138: Total Non-Fossil Fuel Emissions | J138: =SUM(J130:J137) -> 0 | K138: =SUM(K130:K137) -> 0 | L138: =SUM(L130:L137) -> 0
B139: Total Emissions for all Fuels | D139: =D128+D138 -> 0 | E139: =E128+E138 -> 0 | F139: =F128+F138 -> 0 | H139: Total Emissions for all Fuels | J139: =J128+J138 -> 0 | K139: =K128+K138 -> 0 | L139: =L128+L138 -> 0
F144: Current Emissions | L144: Future Emissions
B146: Total CO2 Equivalent Emissions (metric tons) - Stationary Combustion | F146: =(D128+(E128/1000*CH4_GWP)+(F128/1000*N2O_GWP)+(E138/1000*CH4_GWP)+(F138/1000*N2O_GWP))/1000 -> 0 | H146: Total CO2 Equivalent Emissions (metric tons) - Stationary Combustion | L146: =(J128+(K128/1000*CH4_GWP)+(L128/1000*N2O_GWP)+(K138/1000*CH4_GWP)+(L138/1000*N2O_GWP))/1000 -> 0
B148: Total Biomass CO2 Equivalent Emissions (metric tons) - Stationary Combustion | F148: =(D138/1000) -> 0 | H148: Total Biomass CO2 Equivalent Emissions (metric tons) - Stationary Combustion | L148: =(J138/1000) -> 0

Sheet Scope 1 - Process Emissions
A1: Scope 1 Process Emissions | K1: Back to Introduction Tab
A3: Guidance
A4: (A) Any release of CO2, CH4, or N2O due to the production process (not associated with combustion) is required to be included in the GHG inventory. For instance, cement manufacturers should report on annual greenhouse gases from clinker production. Assign a particular source ID of your choosing (this can be referenced in the 'Project' tab).
A5: (B) Describe the process emissions source and input the associated annual GHG emissions in lbs. These are converted to CO2-equivalent emissions at the bottom of the sheet.
A7: For proposed projects that are establishing a new facility, or re-equipping or expanding an existing facility that is not yet operational by the applicant, baseline or "current" information on all tabs may be omitted.
A9: Table 1. Total Emissions from Production Processes | C9: Current Annual Emissions | F9: Future Annual Emissions
A10: Source | B10: Source | C10: CO2 | D10: CH4 | E10: N2O | F10: CO2 | G10: CH4 | H10: N2O
A11: Name/ID | B11: Description | C11: Emissions | D11: Emissions | E11: Emissions | F11: Emissions | G11: Emissions | H11: Emissions
C12: (lb) | D12: (lb) | E12: (lb) | F12: (lb) | G12: (lb) | H12: (lb)
A13: Kiln 1 | B13: Cement kiln | C13: 50000 | D13: 0 | E13: 0 | F13: 10000 | G13: 0 | H13: 0
A51: Total Emissions for All Sources | C51: =SUM(C14:C50) -> 0 | D51: =SUM(D14:D50) -> 0 | E51: =SUM(E14:E50) -> 0 | F51: 0 | G51: 0 | H51: 0
A53: Total GHG Emissions (metric tons CO2-e) | C53: =($C$51+$D$51*CH4_GWP+$E$51*N2O_GWP)*kg_per_lb/1000 -> 0 | F53: =($F$51+$G$51*CH4_GWP+$H$51*N2O_GWP)*kg_per_lb/1000 -> 0

Sheet Scope 1 - Purchased Gases
A1: Scope 1 Emissions from Purchased Gases | K1: Back to Introduction Tab
A3: Guidance
A4: (A) Any use and release of the seven major greenhouse gases (CO2, CH4, N2O, PFCs, HFCs, SF6, and NF3) is required to be included in the GHG inventory. Ozone depleting substances, such as CFCs and HCFCs, are regulated internationally and are typically excluded from a GHG inventory or reported as a memo item.
A5: (B) Select the gas you purchase from the drop down menu and the amount purchased for the annual inventory reporting period in the ORANGE cells.
A6: (C) It is assumed that all gas purchased in the reporting period used and released during the reporting period. If your business makes bulk purchases and plans on using the gas for several years, divide the bulk amount by the years of usage and report that amount.
A7: Tip: If you purchase bulk gas, remember to report it for future years as well.
A9: For proposed projects that are establishing a new facility, or re-equipping or expanding an existing facility that is not yet operational by the applicant, baseline or "current" information on all tabs may be omitted.
A11: Table 1. Purchased Gases | C11: Current Annual Purchases | E11: Future Annual Purchases
A12: Gas | B12: Gas | C12: Purchased | D12: CO2 Equivalent | E12: Purchased | F12: CO2 Equivalent
B13: GWP | C13: Amount | D13: Emissions | E13: Amount | F13: Emissions
C14: (lb) | D14: (lb) | E14: (lb) | F14: (lb)
B15: =IF(A15="","",VLOOKUP(A15,GWP,2,FALSE)) ->  | D15: =IF(B15="", "",B15*C15) ->  | F15: =IF(D15="", "",D15*E15) -> 
D16: =IF(B16="", "",B16*C16) ->  | F16: =IF(D16="", "",D16*E16) -> 
D27: Current | F27: Future
A28: Total CO2 Equivalent Emissions (metric tons) - Purchased Gas | D28: =SUM(D15:D25)*kg_per_lb/1000 -> 0 | F28: =SUM(F15:F25)*kg_per_lb/1000 -> 0
A30: Notes:
A31: 1. GWPs are from Intergovernmental Panel on Climate Change (IPCC) Fourth Assessment Report (2007).

Sheet Scope 1 - Refrigerants
A1: Scope 1 Emissions from Refrigeration and Air Conditioning Equipment | K1: Back to Introduction Tab
A3: Guidance
A4: (A) HFC, PFC, CO2, and SF6 refrigerants from facilities and vehicles are required to be included in the GHG inventory. Ozone depleting substances, such as CFCs and HCFCs, are regulated internationally and are typically excluded from a GHG inventory or reported as a memo item.
A5: (B) Enter annual data in GREEN cells as appropriate.
A6: - Inventory Change = difference of gas stored in inventory from beginning to end of reporting period.
A7: (Includes only gas stored on-site (i.e. cylinders) and not gas contained within equipment).
A8: - Transferred Amount = gas purchased minus gas sold/disposed during reporting period.
A9: -- Gas purchased includes: Purchases for inventory, as part of equipment servicing (not from inventory),
A10: within purchased equipment, and gas returned to the site after off-site recycling.
A11: -- Gas sold/disposed includes: Returns to supplier, sales or disposals (including within equipment),
A12: and gas sent off-site for recycling, reclamation, or destruction.
A13: - Capacity Change = capacity of all units at beginning minus capacity of all units at end of reporting period.
A14: (can be assumed to be capacity of retired units minus capacity of new units).
A16: For proposed projects that are establishing a new facility, or re-equipping or expanding an existing facility that is not yet operational by the applicant, baseline or "current" information on all tabs may be omitted.
A19: Table 1. Organization-Wide Refrigeration Gas CO2 Equivalent Emissions - Material Balance
C20: Current Annual Inventory | G20: Future Annual Inventory
A21: Gas | B21: Gas | C21: Inventory | D21: Transferred | E21: Capacity | F21: CO2 Equivalent | G21: Inventory | H21: Transferred | I21: Capacity | J21: CO2 Equivalent
B22: GWP | C22: Change | D22: Amount | E22: Change | F22: Emissions | G22: Change | H22: Amount | I22: Change | J22: Emissions
C23: (lb) | D23: (lb) | E23: (lb) | F23: (lb) | G23: (lb) | H23: (lb) | I23: (lb) | J23: (lb)
A24: CF4 | B24: =IF(A24="","",VLOOKUP(A24,GWP,2,FALSE)) -> 7390 | F24: =IF(B24="", "",IF(($C24+$D24+$E24)*$B24<0,0,($C24+$D24+$E24)*$B24)) -> 0 | J24: =IF(B24="", "",IF(($G24+$H24+$I24)*$B24<0,0,($G24+$H24+$I24)*$B24)) -> 0
B25: =IF(A25="","",VLOOKUP(A25,GWP,2,FALSE)) ->  | J25: =IF(F25="", "",IF(($C25+$D25+$E25)*$B25<0,0,($C25+$D25+$E25)*$B25)) -> 
F27: =IF(B27="", "",IF(($C27+$D27+$E27)*$B27<0,0,($C27+$D27+$E27)*$B27)) ->  | J27: =IF(F27="", "",IF(($C27+$D27+$E27)*$B27<0,0,($C27+$D27+$E27)*$B27)) -> 
J28: =IF(F28="", "",IF(($C28+$D28+$E28)*$B28<0,0,($C28+$D28+$E28)*$B28)) -> 
A37: Total CO2 Equivalent Emissions (metric tons) - Refrigeration and AC Equipment | F37: Current | J37: Future
F38: =SUM($F$24:$F$34) -> 0 | J38: =SUM($F$24:$F$34) -> 0
A40: Notes:
A41: 1. CO2 emissions estimated using emission factors provided in Table 3 of the Center for Corporate Climate Leadership Greenhouse Gas Inventory Guidance
A42: Direct Fugitive Emissions from Refrigeration, Air Conditioning, Fire Suppression and Industrial Gases. (Dec 2020).
A43: 2. GWPs are from Intergovernmental Panel on Climate Change (IPCC) Fourth Assessment Report (2007).

Sheet Scope 2 - Electricity
A1: Scope 2 Emissions from Purchase of Electricity | K1: Back to Introduction Tab
A3: Guidance
A4: The Indirect Emissions from Purchased Electricity Guidance document provides guidance for quantifying two scope 2 emissions totals, using a location-based method and a procurement-based method. The organization should quantify and report both totals in its GHG inventory. The location-based method considers average emission factors for the electricity grids that provide electricity. The procurement-based method considers contractual arrangements under which the organization procures electricity from specific sources, such as renewable energy. Applicants who wish to demonstrate emissions savings on the basis of marginal grid emissions factors are welcome to submit an alternative accounting in their supplementary materials.
A5: (A) Enter total annual electricity purchased in kWh and each eGRID subregion for each facility or site in GREEN cells of Table 1. Enter a source ID (this can be referenced in the 'Project' tab).
A6: (B) If electricity consumption data are not available for a facility, an estimate should be made for completeness. See the "Items to Note" section of the Help sheet for suggested estimation approaches.
A7: (C) Select "eGRID subregion" from drop box and enter "Electricity Purchased."
A8: - Use map (Figure 1) at bottom of sheet to determine appropriate eGRID subregion. If subregion cannot be determined from the map, find the correct subregion by entering the location's zip code into EPA’s Power Profiler:
A9: https://www.epa.gov/egrid/power-profiler#/
A10: (D) If the facility procures electricity directly, provide the emissions factors in the GREEN cells marked as "<enter factor>". If not, leave the yellow cells as is, and eGRID subregion factors will be used for procuremnet-based emissions.
A11: For proposed projects that are establishing a new facility, or re-equipping or expanding an existing facility that is not yet operational by the applicant, baseline or "current" information on all tabs may be omitted.
A13: Tips: Enter electricity usage by location and then look up the eGRID subregion for each location.
A14: If you purchase renewable energy that is less than 100% of your site's electricity, see the example in the market-based method Help sheet. | E14: CURRENT | F14: CURRENT Location-Based | I14: CURRENT Procurement-Based Use these cells to enter procurement-based emission factors | O14: FUTURE | P14: FUTURE Location-Based | S14: FUTURE Procurement-Based Use these cells to enter procurement-based emission factors
A15: Table 1. Total Amount of Electricity Purchased by eGRID Subregion | F15: Emissions | I15: Emission Factors | L15: Emissions | P15: Emissions | S15: Emission Factors | V15: Emissions
A16: Source | B16: Source | C16: Source | D16: eGRID Subregion | E16: Current Electricity | F16: CO2 | G16: CH4 | H16: N2O | I16: CO2 | J16: CH4 | K16: N2O | L16: CO2 | M16: CH4 | N16: N2O | O16: Future | P16: CO2 | Q16: CH4 | R16: N2O | S16: CO2 | T16: CH4 | U16: N2O | V16: CO2 | W16: CH4 | X16: N2O
A17: ID | B17: Description | C17: Area (sq ft) | D17: where electricity is consumed | E17: Purchased | G17: Emissions | H17: Emissions | I17: Emissions | J17: Emissions | K17: Emissions | L17: Emissions | M17: Emissions | N17: Emissions | O17: Purchased | P17: Emissions | Q17: Emissions | R17: Emissions | S17: Emissions | T17: Emissions | U17: Emissions | V17: Emissions | W17: Emissions | X17: Emissions
E18: (kWh) | F18: (lb) | G18: (lb) | H18: (lb) | I18: (lb/MWh) | J18: (lb/MWh) | K18: (lb/MWh) | L18: (lb) | M18: (lb) | N18: (lb) | O18: (kWh) | P18: (lb) | Q18: (lb) | R18: (lb) | S18: (lb/MWh) | T18: (lb/MWh) | U18: (lb/MWh) | V18: (lb) | W18: (lb) | X18: (lb)
A19: Bldg-012 | B19: East Power Plant | C19: 12517 | D19: HIMS (HICC Miscellaneous) | E19: 200000 | F19: =IF(ISNA(VLOOKUP($D19,eGRID_em_Fctrs,4,FALSE)),"",VLOOKUP($D19,eGRID_em_Fctrs,4,FALSE)*$E19/1000) -> 226880 | G19: =IF(ISNA(VLOOKUP($D19,eGRID_em_Fctrs,5,FALSE)),"",VLOOKUP($D19,eGRID_em_Fctrs,5,FALSE)*$E19/1000) -> 27 | H19: =IF(ISNA(VLOOKUP($D19,eGRID_em_Fctrs,7,FALSE)),"",VLOOKUP($D19,eGRID_em_Fctrs,7,FALSE)*$E19/1000) -> 4.2 | I19: 200000 | J19: 27 | K19: 4.2 | L19: =IFERROR(IF(ISBLANK(I19),F19,E19/1000*I19),"Enter Factor") -> 40000000 | M19: =IFERROR(IF(ISBLANK(J19),G19,E19/1000*J19),"Enter Factor") -> 5400 | N19: =IFERROR(IF(ISBLANK(K19),H19,E19/1000*K19),"Enter Factor") -> 840 | O19: 200000 | P19: =IF(ISNA(VLOOKUP($D19,eGRID_em_Fctrs,4,FALSE)),"",VLOOKUP($D19,eGRID_em_Fctrs,4,FALSE)*$O19/1000) -> 226880 | Q19: =IF(ISNA(VLOOKUP($D19,eGRID_em_Fctrs,5,FALSE)),"",VLOOKUP($D19,eGRID_em_Fctrs,5,FALSE)*$O19/1000) -> 27 | R19: =IF(ISNA(VLOOKUP($D19,eGRID_em_Fctrs,7,FALSE)),"",VLOOKUP($D19,eGRID_em_Fctrs,7,FALSE)*$O19/1000) -> 4.2 | S19: 200000 | T19: 27 | U19: 4.2 | V19: =IFERROR(IF(ISBLANK(S19),P19,O19/1000*S19),"Enter Factor") -> 40000000 | W19: =IFERROR(IF(ISBLANK(T19),Q19,O19/1000*T19),"Enter Factor") -> 5400 | X19: =IFERROR(IF(ISBLANK(U19),R19,O19/1000*U19),"Enter Factor") -> 840
F20: =IF(ISNA(VLOOKUP($D20,eGRID_em_Fctrs,4,FALSE)),"",VLOOKUP($D20,eGRID_em_Fctrs,4,FALSE)*$E20/1000) ->  | H20: =IF(ISNA(VLOOKUP($D20,eGRID_em_Fctrs,7,FALSE)),"",VLOOKUP($D20,eGRID_em_Fctrs,7,FALSE)*$E20/1000) ->  | L20: =IFERROR(IF(ISBLANK(I20),F20,E20/1000*I20),"Enter Factor") ->  | M20: =IFERROR(IF(ISBLANK(J20),G20,E20/1000*J20),"Enter Factor") ->  | N20: =IFERROR(IF(ISBLANK(K20),H20,E20/1000*K20),"Enter Factor") ->  | V20: =IFERROR(IF(ISBLANK(S20),P20,O20/1000*S20),"Enter Factor") ->  | W20: =IFERROR(IF(ISBLANK(T20),Q20,O20/1000*T20),"Enter Factor") ->  | X20: =IFERROR(IF(ISBLANK(U20),R20,O20/1000*U20),"Enter Factor") -> 
F22: =IF(ISNA(VLOOKUP($D22,eGRID_em_Fctrs,4,FALSE)),"",VLOOKUP($D22,eGRID_em_Fctrs,4,FALSE)*$E22/1000) -> 
G33: =IF(ISNA(VLOOKUP($D33,eGRID_em_Fctrs,5,FALSE)),"",VLOOKUP($D33,eGRID_em_Fctrs,5,FALSE)*$E33/1000) -> 
A57: Total Emissions for All Sources | E57: =SUM($E$20:$E$56) -> 0 | F57: =SUM($F$20:$F$56) -> 0 | G57: =SUM($G$20:$G$56) -> 0 | H57: =SUM($H$20:$H$56) -> 0 | L57: =SUM($L$20:$L$56) -> 0 | M57: =SUM($M$20:$M$56) -> 0 | N57: =SUM($N$20:$N$56) -> 0 | O57: =SUM(O$20:O$56) -> 0 | P57: =SUM(P$20:P$56) -> 0 | Q57: =SUM(Q$20:Q$56) -> 0 | R57: =SUM(R$20:R$56) -> 0 | V57: =SUM(V$20:V$56) -> 0 | W57: 0 | X57: 0
A59: CO2 Equivalent Emissions (metric tons) | E59: Current | G59: Future
A60: Location-Based Electricity Emissions | E60: =($F$57+$G$57*CH4_GWP+$H$57*N2O_GWP)*kg_per_lb/1000 -> 0 | G60: =($P$57+$Q$57*CH4_GWP+$R$57*N2O_GWP)*kg_per_lb/1000 -> 0
A61: Procurement-Based Electricity Emissions (final value) | E61: =($L$57+$M$57*CH4_GWP+$N$57*N2O_GWP)*kg_per_lb/1000 -> 0 | G61: =($V$57+$W$57*CH4_GWP+$X$57*N2O_GWP)*kg_per_lb/1000 -> 0
A63: Notes:
A64: 1. CO2, CH4 and N2O emissions are estimated using methodology provided in EPA's Center for Corporate Climate Leadership Greenhouse Gas Inventory Guidance
A65: - Indirect Emissions from Purchased Electricity (January 2016).
A68: Figure 1. EPA eGRID2021, January 2023.

Sheet Scope 2 - Steam
A1: Scope 2 Emissions from Purchase of Steam | K1: Back to Introduction Tab
A3: Guidance
A4: (A) Enter annual data for each facility or site in GREEN cells in Table 1.
A5: - Enter amount of steam purchased in mmBtu. Heat Content conversions can be found on the "Heat Content" sheet.
A6: - Select "Fuel Type" from drop box to indicate the fuel used to generate the steam.
A7: -- If "Fuel Type" is not known, select "Natural Gas" from drop box as default value.
A8: -- If more than one fuel type is used, enter multiple rows, apportioning the steam using the same percentages as the fuel mix.
A9: (B) If steam is purchased at a facility but steam consumption data are not available, an estimate should be made for completeness. See the "Items to Note" section of the Help sheet for suggested estimation approaches.
A10: (C) Preferred Method (steam emission factors ARE available from your supplier). Example entry is shown in first data row (GREEN Italics).
A11: - Enter supplier emission factors for CO2, CH4, and N2O in the purple cells marked as "<enter factor>" if available, otherwise leave factor cells blank.
A12: - These should be expressed in lb / mmBtu of Steam. Heat Content conversions can be found on the "Heat Content" sheet.
A13: - Boiler Efficiency is not necessary if emission factors are available.
B14: - Typically supplier emission factors for steam will apply to both location-based and market-based emissions, and no market-based emission factors need to be entered. However, if there are different applicable market-based emission factors, enter the factors in the yellow cells marked as "<enter factor>". If needed, see the market-based method Help Sheet for guidance.
A15: (D) Alternative Method (supplier-specific emission factors are NOT available). Example entry is shown in second data row (BLUE Italics).
A16: - Enter boiler efficiency. If boiler efficiency is not known, use 80% as default value. Do not enter market-based emission factors.
B18: For proposed projects that are establishing a new facility, or re-equipping or expanding an existing facility that is not yet operational by the applicant, baseline or "current" information on all tabs may be omitted.
A20: Table 1. Fuel, Boiler, Steam and Emission Factor Data for Steam Purchased | F20: Emission Factors | I20: Current Annual Emissions | M20: Future Annual Emissions
A21: Source ID | B21: Source Description | C21: Source Area (sq ft) | D21: Fuel Type | E21: Boiler | F21: CO2 | G21: CH4 | H21: N2O | I21: Steam | J21: CO2 | K21: CH4 | L21: N2O | M21: Steam | N21: CO2 | O21: CH4 | P21: N2O
E22: Efficiency | F22: Factor | G22: Factor | H22: Factor | I22: Purchased | J22: Emissions | K22: Emissions | L22: Emissions | M22: Purchased | N22: Emissions | O22: Emissions | P22: Emissions
E23: (%) | F23: (kg / mmBtu) | G23: (g / mmBtu) | H23: (g / mmBtu) | I23: (mmBtu) | J23: (kg) | K23: (g) | L23: (g) | M23: (mmBtu) | N23: (kg) | O23: (g) | P23: (g)
A24: Bldg-011 | B24: Office | C24: 5000 | D24: Natural Gas | E24: 80 | F24: 72 | G24: 1.5 | H24: 0.6 | I24: 5000 | J24: =IF($I24="","", IF(OR(F24="<enter factor>",F24=""),(VLOOKUP($D24,Stationary_Fuel_Fctrs_mmBtu,2,FALSE))*$I24/(IF($E24="",0.8,$E24/100)), F24*$I24/(IF($E24="",0.8,$E24/100)))) -> 450000 | K24: =IF($I24="","", IF(OR(G24="<enter factor>",G24=""),(VLOOKUP($D24,Stationary_Fuel_Fctrs_mmBtu,3,FALSE))*$I24/(IF($E24="",0.8,$E24/100)), G24*$I24/(IF($E24="",0.8,$E24/100)))) -> 9375 | L24: =IF($I24="","", IF(OR(H24="<enter factor>",H24=""),(VLOOKUP($D24,Stationary_Fuel_Fctrs_mmBtu,4,FALSE))*$I24/(IF($E24="",0.8,$E24/100)), H24*$I24/(IF($E24="",0.8,$E24/100)))) -> 3750 | M24: 5000 | N24: =IF($I24="","", IF(OR(J24="<enter factor>",J24=""),(VLOOKUP($D24,Stationary_Fuel_Fctrs_mmBtu,2,FALSE))*$I24/(IF($E24="",0.8,$E24/100)), J24*$I24/(IF($E24="",0.8,$E24/100)))) -> 2812500000 | O24: =IF($I24="","", IF(OR(K24="<enter factor>",K24=""),(VLOOKUP($D24,Stationary_Fuel_Fctrs_mmBtu,3,FALSE))*$I24/(IF($E24="",0.8,$E24/100)), K24*$I24/(IF($E24="",0.8,$E24/100)))) -> 58593750 | P24: =IF($I24="","", IF(OR(L24="<enter factor>",L24=""),(VLOOKUP($D24,Stationary_Fuel_Fctrs_mmBtu,4,FALSE))*$I24/(IF($E24="",0.8,$E24/100)), L24*$I24/(IF($E24="",0.8,$E24/100)))) -> 23437500
A25: Bldg-012 | B25: Steam-Blr Room | C25: 2000 | D25: Sub-bituminous Coal | E25: 80 | I25: 1000 | J25: 121462.5 | K25: 13750 | L25: 2000 | M25: 1000 | N25: 151828125 | O25: 17187500 | P25: 2500000
A64: Current Annual Emissions by Source and Fuel Type for Steam Purchased | G64: Future Annual Emissions by Source and Fuel Type for Steam Purchased
A65: Fuel Type | C65: CO2 | D65: CH4 | E65: N2O | G65: Fuel Type | I65: CO2 | J65: CH4 | K65: N2O
C66: Emissions | D66: Emissions | E66: Emissions | I66: Emissions | J66: Emissions | K66: Emissions
C67: (kg) | D67: (g) | E67: (g) | I67: (kg) | J67: (g) | K67: (g)
A68: Natural Gas | C68: =SUMIF($D$26:$D$62,$A68,$J$26:$J$62) -> 0 | D68: =SUMIF($D$26:$D$62,$A68,$K$26:$K$62) -> 0 | E68: =SUMIF($D$26:$D$62,$A68,$L$26:$L$62) -> 0 | G68: Natural Gas | I68: =SUMIF($D$26:$D$62,$A68,$N$26:$N$62) -> 0 | J68: =SUMIF($D$26:$D$62,$A68,$O$26:$O$62) -> 0 | K68: =SUMIF($D$26:$D$62,$A68,$P$26:$P$62) -> 0
A69: Distillate Fuel Oil No. 2 | C69: =SUMIF($D$26:$D$62,$A69,$J$26:$J$62) -> 0 | D69: 0 | E69: 0 | G69: Distillate Fuel Oil No. 2 | I69: =SUMIF($D$26:$D$62,$A69,$N$26:$N$62) -> 0 | J69: =SUMIF($D$26:$D$62,$A69,$O$26:$O$62) -> 0 | K69: =SUMIF($D$26:$D$62,$A69,$P$26:$P$62) -> 0
A70: Residual Fuel Oil No. 6 | C70: 0 | D70: 0 | E70: 0 | G70: Residual Fuel Oil No. 6 | I70: 0 | J70: 0 | K70: 0
A71: Kerosene | C71: 0 | D71: 0 | E71: 0 | G71: Kerosene | I71: 0 | J71: 0 | K71: 0
A72: Liquefied Petroleum Gases (LPG) | C72: 0 | D72: 0 | E72: 0 | G72: Liquefied Petroleum Gases (LPG) | I72: 0 | J72: 0 | K72: 0
A73: Anthracite Coal | C73: 0 | D73: 0 | E73: 0 | G73: Anthracite Coal | I73: 0 | J73: 0 | K73: 0
A74: Bituminous Coal | C74: 0 | D74: 0 | E74: 0 | G74: Bituminous Coal | I74: 0 | J74: 0 | K74: 0
A75: Sub-bituminous Coal | C75: 0 | D75: 0 | E75: 0 | G75: Sub-bituminous Coal | I75: 0 | J75: 0 | K75: 0
A76: Lignite Coal | C76: 0 | D76: 0 | E76: 0 | G76: Lignite Coal | I76: 0 | J76: 0 | K76: 0
A77: Mixed (Electric Power Sector) | C77: 0 | D77: 0 | E77: 0 | G77: Mixed (Electric Power Sector) | I77: 0 | J77: 0 | K77: 0
A78: Coal Coke | C78: 0 | D78: 0 | E78: 0 | G78: Coal Coke | I78: 0 | J78: 0 | K78: 0
A79: Wood and Wood Residuals | C79: 0 | D79: 0 | E79: 0 | G79: Wood and Wood Residuals | I79: 0 | J79: 0 | K79: 0
A80: Landfill Gas | C80: 0 | D80: 0 | E80: 0 | G80: Landfill Gas | I80: 0 | J80: 0 | K80: 0
A81: Total Emissions for All Sources | C81: =SUM(C68:C80) -> 0 | D81: 0 | E81: 0 | G81: Total Emissions for All Sources | I81: =SUM(I68:I80) -> 0 | J81: 0 | K81: 0
A83: CO2 Equivalent Emissions (metric tons) | F83: Current | K83: Future
F84: =($C$81+$D$81*CH4_GWP/1000+$E$81*N2O_GWP/1000)/1000 -> 0 | K84: =($I$81+$J$81*CH4_GWP/1000+$K$81*N2O_GWP/1000)/1000 -> 0

Sheet Scope 2 - Hydrogen
A1: Scope 2 Emissions from Purchase of Hydrogen | K1: Back to Introduction Tab
A3: Guidance
A4: (A) Enter annual data for each facility or site in GREEN cells in Table 1.
A5: - Enter amount of hydrogen purchased in kg.
A6: - Select "Production Process" from drop box to indicate the process used to produce the hydrogen.
A7: -- If "Production Process" is not known, select "Steam Methane Reformation" from drop box as default value.
A8: -- If more than one production process type is used, enter multiple rows, apportioning the hydrogen.
A9: (B) Download and complete the GREET Hydrogen module in Excel (https://greet.anl.gov/greet_hydrogen)
A10: - Enable macros in Excel
A11: - Enter requested inputs and outputs
A12: - "Calculate" for each hydrogen source
A13: (C) Enter the CO2e factor generated by the GREET model in Column E
A15: For proposed projects that are establishing a new facility, or re-equipping or expanding an existing facility that is not yet operational by the applicant, baseline or "current" information on all tabs may be omitted.
A17: Table 1. Emission Factor Data for Hydrogen Purchased
D18: Current Annual Purchases | G18: Future Annual Purchases
A19: Source Name/ID | B19: Source Description | C19: Production Process | D19: Hydrogen | E19: CO2e factor | F19: CO2e | G19: Hydrogen | H19: CO2e factor | I19: CO2e
D20: Purchased | E20: from GREET | F20: Emissions | G20: Purchased | H20: from GREET | I20: Emissions
D21: (kg) | E21: (kg CO2 / kgH2) | F21: (kg) | G21: (kg) | H21: (kg CO2 / kgH2) | I21: (kg)
A22: H2 1.1 | B22: Hydrogen source | C22: Steam methane reforming | D22: 5000 | E22: 8 | F22: =D22*E22 -> 40000 | G22: 5000 | H22: 8 | I22: =G22*H22 -> 40000
A61: Current Annual Emissions by Production Process | E61: Future Annual Emissions by Production Process
A62: Production Process | C62: CO2e | E62: Production Process | G62: CO2e
C63: Emissions | G63: Emissions
C64: (kg) | G64: (kg)
A65: Steam methane reforming | C65: =SUMIF($C$23:$C$59,$A65,$F$23:$F$59) -> 0 | E65: Steam methane reforming | G65: =SUMIF($C$23:$C$59,$A65,$I$23:$I$59) -> 0
A66: Nuclear (LWR) high-termperature electrolysis | C66: 0 | E66: Nuclear (LWR) high-termperature electrolysis | G66: =SUMIF($C$23:$C$59,$A66,$I$23:$I$59) -> 0
A67: Low-temperature electrolysis (PEM) | C67: 0 | E67: Low-temperature electrolysis (PEM) | G67: 0
A68: Coal gasification | C68: 0 | E68: Coal gasification | G68: 0
A69: Biomass gasification | C69: 0 | E69: Biomass gasification | G69: 0
A70: Auto-thermal reforming | C70: 0 | E70: Auto-thermal reforming | G70: 0
A71: Other | C71: 0 | E71: Other | G71: =SUMIF($C$23:$C$59,$A71,$I$23:$I$59) -> 0
C72: 0 | G72: 0
C73: 0 | G73: 0
C74: 0 | G74: 0
C75: 0 | G75: 0
C76: 0 | G76: 0
C77: 0 | G77: 0
A78: Total Emissions for All Sources | C78: =SUM(C65:C77) -> 0 | E78: Total Emissions for All Sources | G78: =SUM(G65:G77) -> 0
A80: CO2 Equivalent Emissions (metric tons) | C80: Current | G80: Future
C81: =$C$78/1000 -> 0 | G81: =$G$78/1000 -> 0

Sheet Scope 3 - Indirect
A1: Scope 3 Value Chain Emissions | K1: Back to Introduction Tab
A3: Guidance
A4: Enter annual data for Scope 3 emissions below. For the purposes of this FOA, Scope 3 should encompass emissions that are not produced by the applicant itself, and are not the result of activities from assets controlled by the applicant. Scope 3 emissions should include all sources not within the Scope 1 and Scope 2 boundaries.
A11: Further guidance on calculating Scope 3 emissions can be found here.
A14: For proposed projects that are establishing a new facility, or re-equipping or expanding an existing facility that is not yet operational by the applicant, baseline or "current" information on all tabs may be omitted.
B15: Current | D15: Future
A16: CO2 Equivalent Emissions | C16: MT CO2-e/yr | E16: MT CO2-e/yr
A19: Work/justification here:

Sheet Optional - RECs
A1: Purchased Renewable/Clean Energy Credits | K1: Back to Introduction Tab
A3: Guidance
A4: (A) Enter quantity of RECs purchased annually in GREEN cells of Table 1.
A5: (B) Select "eGRID subregion" from drop box, selecting the location of the facility (not the location of the purchased RECs). This is used to calculate displaced emissions.
A6: - Use map (Figure 1) at bottom of sheet to determine appropriate eGRID subregion. If subregion cannot be determined from the map, find the correct subregion by entering the location's zip code into EPA’s Power Profiler:
A7: https://www.epa.gov/egrid/power-profiler#/
A9: Table 1. Total Amount of Purchased RECs
C10: Current Year RECs | H10: Future Year RECs
A11: ID | B11: Project Description | C11: RECs Purchased (kWh) | D11: eGRID subregion (where electricity is consumed, should be same as Electricity tab) | E11: Displaced CO2 Emissions (lb) | F11: Displaced CH4 Emissions (lb) | G11: Displaced N2O Emissions (lb) | H11: RECs Purchased (kWh) | I11: eGRID subregion (where electricity is consumed, should be same as Electricity tab) | J11: Displaced CO2 Emissions (lb) | K11: Displaced CH4 Emissions (lb) | L11: Displaced N2O Emissions (lb)
A12: Project 1 | B12: Renewable Energy Credits | C12: 200000 | D12: NEWE (NPCC New England) | E12: =IF(ISNA(VLOOKUP($D12,eGRID_em_Fctrs,4,FALSE)),"",VLOOKUP($D12,eGRID_em_Fctrs,4,FALSE)*$C12/1000) -> 107880 | F12: =IF(ISNA(VLOOKUP($D12,eGRID_em_Fctrs,5,FALSE)),"",VLOOKUP($D12,eGRID_em_Fctrs,5,FALSE)*$C12/1000) -> 14.4 | G12: =IF(ISNA(VLOOKUP($D12,eGRID_em_Fctrs,7,FALSE)),"",VLOOKUP($D12,eGRID_em_Fctrs,7,FALSE)*$C12/1000) -> 1.8 | H12: 200000 | I12: NEWE (NPCC New England) | J12: =IF(ISNA(VLOOKUP($D12,eGRID_em_Fctrs,4,FALSE)),"",VLOOKUP($D12,eGRID_em_Fctrs,4,FALSE)*$C12/1000) -> 107880 | K12: =IF(ISNA(VLOOKUP($D12,eGRID_em_Fctrs,5,FALSE)),"",VLOOKUP($D12,eGRID_em_Fctrs,5,FALSE)*$C12/1000) -> 14.4 | L12: =IF(ISNA(VLOOKUP($D12,eGRID_em_Fctrs,7,FALSE)),"",VLOOKUP($D12,eGRID_em_Fctrs,7,FALSE)*$C12/1000) -> 1.8
A23: Total Emissions for All Sources | E23: =SUM(E$13:E$22) -> 0 | F23: =SUM(F$13:F$22) -> 0 | G23: =SUM(G$13:G$22) -> 0 | J23: =SUM(J$13:J$22) -> 0 | K23: =SUM(K$13:K$22) -> 0 | L23: =SUM(L$13:L$22) -> 0
A25: Total CO2 Equivalent Emission Reductions (metric tons) - RECs | C25: Current | F25: Future
C26: =($E$23+$F$23*CH4_GWP+$G$23*N2O_GWP)*kg_per_lb/1000 -> 0 | F26: =($J$23+$K$23*CH4_GWP+$L$23*N2O_GWP)*kg_per_lb/1000 -> 0

Sheet Unit Conversions
A1: Tool Sheet: Unit Conversions | K1: Back to Introduction Tab
A4: Mass
A5: Convert From | B5: Convert To | C5: Multiply By | D5: Units
A6: pounds (lb) | B6: gram (g) | C6: 453.6 | D6: g / lb
A7: pounds (lb) | B7: kilogram (kg) | C7: 0.4536 | D7: kg / lb
A8: pounds (lb) | B8: metric ton | C8: 0.0004536 | D8: metric ton / lb
A9: kilogram (kg) | B9: pounds (lb) | C9: 2.205 | D9: lb / kg
A10: gram (g) | B10: short ton | C10: =C11/1000 -> 1.102e-06 | D10: short ton / g
A11: kilogram (kg) | B11: short ton | C11: =C12/1000 -> 0.001102 | D11: short ton / kg
A12: metric ton | B12: short ton | C12: 1.102 | D12: short ton / metric ton
A13: pounds (lb) | B13: short ton | C13: =1/2000 -> 0.0005 | D13: short ton / lb
A14: short ton | B14: short ton | C14: 1 | D14: short ton / short ton
A15: metric ton | B15: pounds (lb) | C15: 2205 | D15: lb / metric ton
A16: metric ton | B16: kilogram (kg) | C16: 1000 | D16: kg / metric ton
A18: Volume
A19: Convert From | B19: Convert To | C19: Multiply By | D19: Units
A20: standard cubic foot (scf) | B20: US gallon (gal) | C20: 7.4805 | D20: gal / scf
A21: standard cubic foot (scf) | B21: barrel (bbl) | C21: 0.1781 | D21: bbl / scf
A22: standard cubic foot (scf) | B22: liters (L) | C22: 28.32 | D22: L / scf
A23: standard cubic foot (scf) | B23: cubic meters (m3) | C23: 0.02832 | D23: m3 / scf
A24: US gallon (gal) | B24: barrel (bbl) | C24: 0.0238 | D24: bbl / gal
A25: US gallon (gal) | B25: liters (L) | C25: 3.785 | D25: L / gal
A26: US gallon (gal) | B26: cubic meters (m3) | C26: 0.003785 | D26: m3 / gal
A27: barrel (bbl) | B27: US gallons (gal) | C27: 42 | D27: gal / bbl
A28: barrel (bbl) | B28: liters (L) | C28: 158.99 | D28: L / bbl
A29: barrel (bbl) | B29: cubic meters (m3) | C29: 0.1589 | D29: m3 / bbl
A30: liters (L) | B30: cubic meters (m3) | C30: 0.001 | D30: m3 / L
A31: liters (L) | B31: US gallon (gal) | C31: 0.2642 | D31: gal / L
A32: cubic meters (m3) | B32: barrel (bbl) | C32: 6.2897 | D32: bbl / m3
A33: cubic meters (m3) | B33: US gallon (gal) | C33: 264.2 | D33: gal / m3
A34: cubic meters (m3) | B34: liters (L) | C34: 1000 | D34: L / m3
A36: Energy
A37: Convert From | B37: Convert To | C37: Multiply By | D37: Units
A38: kilowatt hour (kWh) | B38: Btu | C38: 3412 | D38: Btu / kWh
A39: kilowatt hour (kWh) | B39: kilojoules (KJ) | C39: 3600 | D39: KJ / kWh
A40: megajoule (MJ) | B40: gigajoules (GJ) | C40: 0.001 | D40: GJ / MJ
A41: gigajoule (GJ) | B41: million Btu (mmBtu) | C41: 0.9478 | D41: mmBtu / GJ
A42: gigajoule (GJ) | B42: kilowatt hours (kWh) | C42: 277.8 | D42: kWh / GJ
A43: Btu | B43: joules (J) | C43: 1055 | D43: J / Btu
A44: million Btu (mmBtu) | B44: gigajoules (GJ) | C44: 1.055 | D44: GJ / mmBtu
A45: million Btu (mmBtu) | B45: kilowatt hours (kWh) | C45: 293 | D45: kWh / mmBtu
A46: therm | B46: Btu | C46: 100000 | D46: Btu / therm
A47: therm | B47: gigajoules (GJ) | C47: 0.1055 | D47: GJ / therm
A48: therm | B48: kilowatt hours (kWh) | C48: 29.3 | D48: kWh / therm
A50: Distance
A51: Convert From | B51: Convert To | C51: Multiply By | D51: Units
A52: mile | B52: kilometers (km) | C52: 1.609 | D52: km / mile
A53: nautical mile | B53: miles | C53: 1.15 | D53: mile / nautical mile
A54: kilometer (km) | B54: miles | C54: =ROUND(1/C52,3) -> 0.622 | D54: mile / km
A56: Other
A57: Kilo | B57: 1000
A58: Mega | B58: 1000000
A59: Giga | B59: 1000000000
A60: Tera | B60: 1000000000000
A61: Molecular Weigh of C | B61: 12
A62: Molecular Weight of CO2 | B62: 44

Sheet Heat Content
A1: Tool Sheet: Heat Content for Specific Fuels | K1: Back to Introduction Tab
A2: Additional heat contents can be found in the EF Hub.
A4: Fuel Type | B4: Convert From | C4: Convert To | D4: Multiply By | E4: Units | F4: Source
A5: Natural Gas | B5: mmBtu | C5: scf | D5: =ROUND(1/0.001026,6) -> 974.658869 | E5: scf / mmBtu | F5: EPA, Emission Factors Hub March 2023, Based on Federal Register EPA; 40 CFR Part 98; e-CFR, (see link below). Table C-1, Table C-2 (as amended at 81 FR 89252, Dec. 9, 2016), Table AA-1 (78 FR 71965, Nov. 29, 2013). https://www.ecfr.gov/cgi-bin/text-idx?SID=ae265d7d6f98ec86fcd8640b9793a3f6&mc=true&node=pt40.23.98&rgn=div5#ap40.23.98_19.1
A6: Natural Gas | B6: Dth (Decatherm) | C6: scf | D6: =D5 -> 974.658869 | E6: scf / Dth
A7: Natural Gas | B7: therm | C7: scf | D7: =D6/10 -> 97.4658869 | E7: scf / therm
A8: Natural Gas | B8: ccf | C8: scf | D8: 100 | E8: scf / ccf
A9: Natural Gas | B9: Mcf | C9: scf | D9: 1000 | E9: scf / Mcf
A10: Natural Gas | B10: cubic meter | C10: scf | D10: =1/'Unit Conversions'!C23 -> 35.31073446 | E10: scf / cubic meter
A11: Natural Gas | B11: kWh | C11: scf | D11: =D5*('Unit Conversions'!C38/1000000) -> 3.325536061 | E11: scf / kWh
A12: Anthracite Coal | B12: mmBtu | C12: Short ton | D12: =1/25.09 -> 0.03985651654 | E12: short ton / mmBtu
A13: Bituminous Coal | B13: mmBtu | C13: Short ton | D13: =1/24.93 -> 0.04011231448 | E13: short ton / mmBtu
A14: Sub-bituminous Coal | B14: mmBtu | C14: Short ton | D14: =1/17.25 -> 0.05797101449 | E14: short ton / mmBtu
A15: Lignite Coal | B15: mmBtu | C15: Short ton | D15: =1/14.21 -> 0.07037297678 | E15: short ton / mmBtu
A16: Mixed (Commercial Sector) | B16: mmBtu | C16: Short ton | D16: =1/21.39 -> 0.04675081814 | E16: short ton / mmBtu
A17: Mixed (Electric Power Sector) | B17: mmBtu | C17: Short ton | D17: =1/19.73 -> 0.0506842372 | E17: short ton / mmBtu
A18: Mixed (Industrial Coking) | B18: mmBtu | C18: Short ton | D18: =1/26.28 -> 0.03805175038 | E18: short ton / mmBtu
A19: Mixed (Industrial Sector) | B19: mmBtu | C19: Short ton | D19: =1/22.35 -> 0.04474272931 | E19: short ton / mmBtu
A20: Coal Coke | B20: mmBtu | C20: Short ton | D20: =1/24.8 -> 0.04032258065 | E20: short ton / mmBtu
A21: Agricultural Byproducts | B21: mmBtu | C21: Short ton | D21: =1/8.25 -> 0.1212121212 | E21: short ton / mmBtu
A22: Peat | B22: mmBtu | C22: Short ton | D22: =1/8 -> 0.125 | E22: short ton / mmBtu
A23: Solid Byproducts | B23: mmBtu | C23: Short ton | D23: =1/10.39 -> 0.09624639076 | E23: short ton / mmBtu
A24: Wood and Wood Residuals | B24: mmBtu | C24: Short ton | D24: =1/17.48 -> 0.05720823799 | E24: short ton / mmBtu
A25: Municipal Solid Waste | B25: mmBtu | C25: Short ton | D25: =1/9.95 -> 0.1005025126 | E25: short ton / mmBtu
A26: Petroleum Coke (Solid) | B26: mmBtu | C26: Short ton | D26: =1/30 -> 0.03333333333 | E26: short ton / mmBtu
A27: Plastics | B27: mmBtu | C27: Short ton | D27: =1/38 -> 0.02631578947 | E27: short ton / mmBtu
A28: Tires | B28: mmBtu | C28: Short ton | D28: =1/28 -> 0.03571428571 | E28: short ton / mmBtu
A29: Distillate Fuel Oil No. 2 | B29: mmBtu | C29: gallon | D29: =1/0.138 -> 7.246376812 | E29: gallon / mmBtu
A30: Residual Fuel Oil No. 6 | B30: mmBtu | C30: gallon | D30: =1/0.15 -> 6.666666667 | E30: gallon / mmBtu
A31: Kerosene | B31: mmBtu | C31: gallon | D31: =1/0.135 -> 7.407407407 | E31: gallon / mmBtu
A32: Liquefied Petroleum Gases (LPG) | B32: mmBtu | C32: gallon | D32: =1/0.092 -> 10.86956522 | E32: gallon / mmBtu
A33: Biodiesel (100%) | B33: mmBtu | C33: gallon | D33: =1/0.128 -> 7.8125 | E33: gallon / mmBtu
A34: Ethanol (100%) | B34: mmBtu | C34: gallon | D34: =1/0.084 -> 11.9047619 | E34: gallon / mmBtu
A35: Vegetable Oil | B35: mmBtu | C35: gallon | D35: =1/0.12 -> 8.333333333 | E35: gallon / mmBtu
A36: Propane Gas | B36: mmBtu | C36: scf | D36: =1/0.002516 -> 397.4562798 | E36: scf / mmBtu
A37: Propane Gas | B37: therm | C37: scf | D37: =D36/10 -> 39.74562798 | E37: scf / therm
A38: Landfill Gas | B38: mmBtu | C38: scf | D38: =1/0.000485 -> 2061.85567 | E38: scf / mmBtu
A39: Landfill Gas | B39: therm | C39: scf | D39: =D38/10 -> 206.185567 | E39: scf / therm
A40: Steam | B40: Mlb (1,000 pounds) | C40: mmBtu | D40: =D41*1000 -> 1.194 | E40: mmBtu / Mlb | F40: EPA, ENERGY STAR, https://www.energystar.gov/buildings/tools-and-resources/portfolio-manager-technical-reference-thermal-conversion-factors
A41: Steam | B41: lb | C41: mmBtu | D41: =1.194/1000 -> 0.001194 | E41: mmBtu / lb
A42: Steam | B42: short ton | C42: mmBtu | D42: =D41/'Unit Conversions'!C13 -> 2.388 | E42: mmBtu / short ton

Sheet Emission Factors
A1: Tool Sheet: Emission Factors | K1: Back to Introduction Tab
A3: All emission factors are sourced from EPA's Emission Factors Hub, March 2023 unless otherwise noted. Fuel emission factors presented represent the combustion-only (tank-to-wheel) emissions and do not represent upstream (well-to-wheel) emissions.
A4: Reference the below link to the EPA's Emission Factors Hub for source data information and links to the methodology and technical documents associated with each table.
A5: https://www.epa.gov/climateleadership/center-corporate-climate-leadership-ghg-emission-factors-hub
A7: Stationary Combustion Emission Factors (Used for Steam and Stationary Combustion)
A9: Fuel Type | B9: CO2 Factor (kg / mmBtu) | C9: CH4 Factor (g / mmBtu) | D9: N2O Factor (g / mmBtu) | E9: CO2 Factor (kg / Unit) | F9: CH4 Factor (g / unit) | G9: N2O Factor (g / unit) | H9: Unit
A10: Natural Gas | B10: 53.06 | C10: 1 | D10: 0.1 | E10: 0.05444 | F10: 0.00103 | G10: 0.0001 | H10: scf
A11: Distillate Fuel Oil No. 2 | B11: 73.96 | C11: 3 | D11: 0.6 | E11: 10.21 | F11: 0.41 | G11: 0.08 | H11: gallons
A12: Residual Fuel Oil No. 6 | B12: 75.1 | C12: 3 | D12: 0.6 | E12: 11.27 | F12: 0.45 | G12: 0.09 | H12: gallons
A13: Kerosene | B13: 75.2 | C13: 3 | D13: 0.6 | E13: 10.15 | F13: 0.41 | G13: 0.08 | H13: gallons
A14: Liquefied Petroleum Gases (LPG) | B14: 61.71 | C14: 3 | D14: 0.6 | E14: 5.68 | F14: 0.28 | G14: 0.06 | H14: gallons
A15: Anthracite Coal | B15: 103.69 | C15: 11 | D15: 1.6 | E15: 2602 | F15: 276 | G15: 40 | H15: short tons
A16: Bituminous Coal | B16: 93.28 | C16: 11 | D16: 1.6 | E16: 2325 | F16: 274 | G16: 40 | H16: short tons
A17: Sub-bituminous Coal | B17: 97.17 | C17: 11 | D17: 1.6 | E17: 1676 | F17: 190 | G17: 28 | H17: short tons
A18: Lignite Coal | B18: 97.72 | C18: 11 | D18: 1.6 | E18: 1389 | F18: 156 | G18: 23 | H18: short tons
A19: Mixed (Commercial Sector) | B19: 94.27 | C19: 11 | D19: 1.6 | E19: 2016 | F19: 235 | G19: 34 | H19: short tons
A20: Mixed (Electric Power Sector) | B20: 95.52 | C20: 11 | D20: 1.6 | E20: 1885 | F20: 217 | G20: 32 | H20: short tons
A21: Mixed (Industrial Coking) | B21: 93.9 | C21: 11 | D21: 1.6 | E21: 2468 | F21: 289 | G21: 42 | H21: short tons
A22: Mixed (Industrial Sector) | B22: 94.67 | C22: 11 | D22: 1.6 | E22: 2116 | F22: 246 | G22: 36 | H22: short tons
A23: Coal Coke | B23: 113.67 | C23: 11 | D23: 1.6 | E23: 2819 | F23: 273 | G23: 40 | H23: short tons
A24: Municipal Solid Waste | B24: 90.7 | C24: 32 | D24: 4.2 | E24: 902 | F24: 318 | G24: 42 | H24: short tons
A25: Petroleum Coke (Solid) | B25: 102.41 | C25: 32 | D25: 4.2 | E25: 3072 | F25: 960 | G25: 126 | H25: short tons
A26: Plastics | B26: 75 | C26: 32 | D26: 4.2 | E26: 2850 | F26: 1216 | G26: 160 | H26: short tons
A27: Tires | B27: 85.97 | C27: 32 | D27: 4.2 | E27: 2407 | F27: 896 | G27: 118 | H27: short tons
A28: Agricultural Byproducts | B28: 118.17 | C28: 32 | D28: 4.2 | E28: 975 | F28: 264 | G28: 35 | H28: short tons
A29: Peat | B29: 111.84 | C29: 32 | D29: 4.2 | E29: 895 | F29: 256 | G29: 34 | H29: short tons
A30: Solid Byproducts | B30: 105.51 | C30: 32 | D30: 4.2 | E30: 1096 | F30: 332 | G30: 44 | H30: short tons
A31: Wood and Wood Residuals | B31: 0 | C31: 7.2 | D31: 3.6 | E31: 1640 | F31: 126 | G31: 63 | H31: short tons
A32: Propane Gas | B32: 61.46 | C32: 3 | D32: 0.6 | E32: 0.15463 | F32: 0.007548 | G32: 0.00151 | H32: scf
A33: Landfill Gas | B33: 0 | C33: 3.2 | D33: 0.63 | E33: 0.025254 | F33: 0.001552 | G33: 0.000306 | H33: scf
A34: Biodiesel (100%) | B34: 73.84 | C34: 1.1 | D34: 0.11 | E34: 9.45 | F34: 0.14 | G34: 0.01 | H34: gallons
A35: Ethanol (100%) | B35: 68.44 | C35: 1.1 | D35: 0.11 | E35: 5.75 | F35: 0.09 | G35: 0.01 | H35: gallons
A36: Rendered Animal Fat | B36: 71.06 | C36: 1.1 | D36: 0.11 | E36: 8.88 | F36: 0.14 | G36: 0.01 | H36: gallons
A37: Vegetable Oil | B37: 81.55 | C37: 1.1 | D37: 0.11 | E37: 9.79 | F37: 0.13 | G37: 0.01 | H37: gallons
A39: Hydrogen Production Emission Factors (Used for Estimating LCA of Hydrogen Consumption)
A41: Fuel Type | B41: CO2 Factor (kg / mmBtu) | C41: CH4 Factor (g / mmBtu) | D41: N2O Factor (g / mmBtu) | E41: CO2 Factor (kg / Unit) | F41: CH4 Factor (g / unit) | G41: N2O Factor (g / unit) | H41: Unit
A42: Natural gas reforming | H42: kg
A43: Electrolysis | H43: kg
A44: Biomass gasification | H44: kg
A45: Biomass-derived liquid refomring | H45: kg
A46: Solar thermochemical hydrogen | H46: kg
A47: Direct solar water splitting | H47: kg
A48: Microbial biomass conversion | H48: kg
A49: Photobiological | H49: kg
A52: Mobile Combustion Emission Factors
A53: CO2 Emissions for Road Vehicles
A54: Fuel Type | B54: CO2 Emission Factor (kg CO2 / unit) | C54: Unit
A55: Motor Gasoline | B55: 8.78 | C55: gallon
A56: Diesel Fuel | B56: 10.21 | C56: gallon
A57: Residual Fuel Oil | B57: 11.27 | C57: gallon
A58: Aviation Gasoline | B58: 8.31 | C58: gallon
A59: Kerosene-Type Jet Fuel | B59: 9.75 | C59: gallon
A60: Liquefied Petroleum Gases (LPG) | B60: 5.68 | C60: gallon
A61: Ethanol (100%) | B61: 5.75 | C61: gallon
A62: Biodiesel (100%) | B62: 9.45 | C62: gallon
A63: Liquefied Natural Gas (LNG) | B63: 4.5 | C63: gallon
A64: Compressed Natural Gas (CNG) | B64: 0.05444 | C64: scf
A66: CH4 and N2O Emissions for Highway Vehicles
A67: Note: As of the v9 Simplified GHG Calculation tool update, the latest mobile combustion factors reflect year 2020 data. Therefore, for all vehicle model years 2021 onward, the 2020 year factor is used.
A68: Vehicle Type | B68: Year | C68: CH4 Factor (g / mile) | D68: N2O Factor (g / mile) | E68: Notes
A69: Gasoline Passenger Cars | B69: 1984-93 | C69: 0.0704 | D69: 0.0647
B70: 1994 | C70: 0.0617 | D70: 0.0603
B71: 1995 | C71: 0.0531 | D71: 0.056
B72: 1996 | C72: 0.0434 | D72: 0.0503
B73: 1997 | C73: 0.0337 | D73: 0.0446
B74: 1998 | C74: 0.024 | D74: 0.0389
B75: 1999 | C75: 0.0215 | D75: 0.0355
B76: 2000 | C76: 0.0175 | D76: 0.0304
B77: 2001 | C77: 0.0105 | D77: 0.0212
B78: 2002 | C78: 0.0102 | D78: 0.0207
B79: 2003 | C79: 0.0095 | D79: 0.0181
B80: 2004 | C80: 0.0078 | D80: 0.0085
B81: 2005 | C81: 0.0075 | D81: 0.0067
B82: 2006 | C82: 0.0076 | D82: 0.0075
B83: 2007 | C83: 0.0072 | D83: 0.0052
B84: 2008 | C84: 0.0072 | D84: 0.0049
B85: 2009 | C85: 0.0071 | D85: 0.0046
B86: 2010 | C86: 0.0071 | D86: 0.0046
B87: 2011 | C87: 0.0071 | D87: 0.0046
B88: 2012 | C88: 0.0071 | D88: 0.0046
B89: 2013 | C89: 0.0071 | D89: 0.0046
B90: 2014 | C90: 0.0071 | D90: 0.0046
B91: 2015 | C91: 0.0068 | D91: 0.0042
B92: 2016 | C92: 0.0065 | D92: 0.0038
B93: 2017 | C93: 0.0054 | D93: 0.0018
B94: 2018 | C94: 0.0052 | D94: 0.0016
B95: 2019 | C95: 0.0051 | D95: 0.0015
B96: 2020 | C96: 0.005 | D96: 0.0014
B97: 2021 | C97: =$C$96 -> 0.005 | D97: =D96 -> 0.0014 | E97: Held constant from most updated data (year 2020 factor).
B98: 2022 | C98: =$C$96 -> 0.005 | D98: =D97 -> 0.0014 | E98: Held constant from most updated data (year 2020 factor).
B99: 2023 | C99: 0.005 | D99: 0.0014 | E99: Held constant from most updated data (year 2020 factor).
A100: Gasoline Light-Duty Trucks | B100: 1987-93 | C100: 0.0813 | D100: 0.1035
A101: (Vans, Pickup Trucks, SUVs) | B101: 1994 | C101: 0.0646 | D101: 0.0982
B102: 1995 | C102: 0.0517 | D102: 0.0908
B103: 1996 | C103: 0.0452 | D103: 0.0871
B104: 1997 | C104: 0.0452 | D104: 0.0871
B105: 1998 | C105: 0.0412 | D105: 0.0787
B106: 1999 | C106: 0.0333 | D106: 0.0618
B107: 2000 | C107: 0.034 | D107: 0.0631
B108: 2001 | C108: 0.0221 | D108: 0.0379
B109: 2002 | C109: 0.0242 | D109: 0.0424
B110: 2003 | C110: 0.0221 | D110: 0.0373
B111: 2004 | C111: 0.0115 | D111: 0.0088
B112: 2005 | C112: 0.0105 | D112: 0.0064
B113: 2006 | C113: 0.0108 | D113: 0.008
B114: 2007 | C114: 0.0103 | D114: 0.0061
B115: 2008 | C115: 0.0095 | D115: 0.0036
B116: 2009 | C116: 0.0095 | D116: 0.0036
B117: 2010 | C117: 0.0095 | D117: 0.0035
B118: 2011 | C118: 0.0096 | D118: 0.0034
B119: 2012 | C119: 0.0096 | D119: 0.0033
B120: 2013 | C120: 0.0095 | D120: 0.0035
B121: 2014 | C121: 0.0095 | D121: 0.0033
B122: 2015 | C122: 0.0094 | D122: 0.0031
B123: 2016 | C123: 0.0091 | D123: 0.0029
B124: 2017 | C124: 0.0084 | D124: 0.0018
B125: 2018 | C125: 0.0081 | D125: 0.0015
B126: 2019 | C126: 0.008 | D126: 0.0013
B127: 2020 | C127: 0.0079 | D127: 0.0012 | E127: Assume these CH4 and N2O factors for ethanol light-duty vehicles
B128: 2021 | C128: =$C$127 -> 0.0079 | D128: =$D$127 -> 0.0012 | E128: Held constant from most updated data (year 2020 factor).
B129: 2022 | C129: =$C$127 -> 0.0079 | D129: =$D$127 -> 0.0012 | E129: Held constant from most updated data (year 2020 factor).
B130: 2023 | C130: =$C$127 -> 0.0079 | D130: =$D$127 -> 0.0012 | E130: Held constant from most updated data (year 2020 factor).
A131: Gasoline Heavy-Duty Vehicles | B131: 1985-86 | C131: 0.409 | D131: 0.0515
B132: 1987 | C132: 0.3675 | D132: 0.0849
B133: 1988-1989 | C133: 0.3492 | D133: 0.0933
B134: 1990-1995 | C134: 0.3246 | D134: 0.1142
B135: 1996 | C135: 0.1278 | D135: 0.168
B136: 1997 | C136: 0.0924 | D136: 0.1726
B137: 1998 | C137: 0.0655 | D137: 0.175
B138: 1999 | C138: 0.0648 | D138: 0.1724
B139: 2000 | C139: 0.063 | D139: 0.166
B140: 2001 | C140: 0.0577 | D140: 0.1468
B141: 2002 | C141: 0.0634 | D141: 0.1673
B142: 2003 | C142: 0.0602 | D142: 0.1553
B143: 2004 | C143: 0.0298 | D143: 0.0164
B144: 2005 | C144: 0.0297 | D144: 0.0083
B145: 2006 | C145: 0.0299 | D145: 0.0241
B146: 2007 | C146: 0.0322 | D146: 0.0015
B147: 2008 | C147: 0.034 | D147: 0.0015
B148: 2009 | C148: 0.0339 | D148: 0.0015
B149: 2010 | C149: 0.032 | D149: 0.0015
B150: 2011 | C150: 0.0304 | D150: 0.0015
B151: 2012 | C151: 0.0313 | D151: 0.0015
B152: 2013 | C152: 0.0313 | D152: 0.0015
B153: 2014 | C153: 0.0315 | D153: 0.0015
B154: 2015 | C154: 0.0332 | D154: 0.0021
B155: 2016 | C155: 0.0321 | D155: 0.0061
B156: 2017 | C156: 0.0329 | D156: 0.0084
B157: 2018 | C157: 0.0326 | D157: 0.0082
B158: 2019 | C158: 0.033 | D158: 0.0091
B159: 2020 | C159: 0.0328 | D159: 0.0098 | E159: Assumed these CH4 and N2O factors for ethanol heavy-duty vehicles and buses
B160: 2021 | C160: =$C$159 -> 0.0328 | D160: =$D$159 -> 0.0098 | E160: Held constant from most updated data (year 2020 factor).
B161: 2022 | C161: =$C$159 -> 0.0328 | D161: =$D$159 -> 0.0098 | E161: Held constant from most updated data (year 2020 factor).
B162: 2023 | C162: 0.0328 | D162: 0.0098 | E162: Held constant from most updated data (year 2020 factor).
A163: Gasoline Motorcycles | B163: 1960-1995 | C163: 0.007 | D163: 0.0083
B164: 1996-2005 | C164: 0 | D164: 0
B165: 2006-2023 | C165: 0.007 | D165: 0.0083 | E165: Held constant for 2021 onwards from most recent data year (year 2020 data).
A167: Vehicle Type | B167: Fuel Type | C167: Vehicle Year | D167: CH4 Factor (g / mile) | E167: N2O Factor (g / mile) | F167: Notes
A168: Passenger Cars | B168: Diesel | C168: 1960-1982 | D168: 0.0006 | E168: 0.0012
C169: 1983-2006 | D169: 0.0005 | E169: 0.001
C170: 2007-2023 | D170: 0.0302 | E170: 0.0192 | F170: Held constant for 2021 onwards from most recent data year (year 2020 data).
A171: Light-Duty Trucks | B171: Diesel | C171: 1960-1982 | D171: 0.0011 | E171: 0.0017
C172: 1983-2006 | D172: 0.0009 | E172: 0.0014
C173: 2007-2023 | D173: 0.029 | E173: 0.0214 | F173: Held constant for 2021 onwards from most recent data year (year 2020 data).
A174: Medium- and Heavy-Duty Vehicles | B174: Diesel | C174: 1960-2006 | D174: 0.0051 | E174: 0.0048
C175: 2007-2023 | D175: 0.0095 | E175: 0.0431 | F175: Held constant for 2021 onwards from most recent data year (year 2020 data).
A176: Light-Duty Cars | B176: Methanol | D176: 0.015 | E176: 0.004
B177: Ethanol | D177: 0.015 | E177: 0.004
B178: CNG | D178: 0.146 | E178: 0.004
B179: LPG | D179: 0.015 | E179: 0.004
B180: Biodiesel | D180: 0.03 | E180: 0.019
A181: Light-Duty Trucks | B181: Ethanol | D181: 0.016 | E181: 0.005
B182: CNG | D182: 0.158 | E182: 0.005
B183: LPG | D183: 0.016 | E183: 0.005
B184: LNG | D184: 0.158 | E184: 0.005
B185: Biodiesel | D185: 0.029 | E185: 0.021
A186: Medium-Duty Trucks | B186: CNG | D186: 1.829 | E186: 0.001
B187: LPG | D187: 0.009 | E187: 0.018
B188: LNG | D188: 1.829 | E188: 0.001
B189: Biodiesel | D189: 0.009 | E189: 0.043
A190: Heavy-Duty Trucks | B190: Methanol | D190: 0.075 | E190: 0.028
B191: Ethanol | D191: 0.075 | E191: 0.028
B192: CNG | D192: 0.921 | E192: 0
B193: LPG | D193: 0.003 | E193: 0.007
B194: LNG | D194: 0.921 | E194: 0
B195: Biodiesel | D195: 0.009 | E195: 0.043
A196: Buses | B196: Methanol | D196: 0.102 | E196: 0.047
B197: Ethanol | D197: 0.102 | E197: 0.047
B198: CNG | D198: 2.787 | E198: 0.001
B199: LPG | D199: 0.01 | E199: 0.011
B200: LNG | D200: 2.787 | E200: 0.001
B201: Biodiesel | D201: 0.009 | E201: 0.043
A203: CH4 and N2O Emissions for Non-Road Vehicles
A204: Vehicle Type (superscript from EF Hub removed) | B204: Fuel Type | C204: CH4 Factor (g / gallon) | D204: N2O Factor (g / gallon)
A205: Ships and Boats | B205: Residual Fuel Oil | C205: 1.11 | D205: 0.32
B206: Gasoline (2 stroke) | C206: 4.61 | D206: 0.08
B207: Gasoline (4 stroke) | C207: 2.25 | D207: 0.01
B208: Diesel | C208: 6.41 | D208: 0.17
A209: Locomotives | B209: Diesel | C209: 0.8 | D209: 0.26
A210: Aircraft | B210: Jet Fuel | C210: 0 | D210: 0.3
... 235 more rows

Sheet DropDown (hidden)
A1: Tab Navigation | B1: Help Tab Navigation | C1: Fuel Combusted | D1: OnRoad | E1: NonRoad | F1: TYPE OF REFRIGERATION EQUIPMENT | G1: CHOICES FOR REFRIGERANT | H1: Fire Suppression Equipment | I1: Fire Suppression Gas | J1: GHGs | K1: Electricity eGRID Subregions | L1: Steam Fuel Type | M1: Hydrogen Production Process | N1: Travel by Vehicle Miles | O1: Travel by Passenger Miles | P1: Travel by Air | Q1: Product Transport Vehicle Type | R1: Product Transport Type | S1: Fuel | T1: Fuel State | U1: Gas | V1: Liquid | W1: Solid | X1: Mass | Z1: Aluminum Cans | AA1: Aluminum Ingot | AB1: Steel Cans | AC1: Copper Wire | AD1: Glass | AE1: HDPE | AF1: LDPE | AG1: PET | AH1: LLDPE | AI1: PP | AJ1: PS | AK1: PVC | AL1: PLA | AM1: Corrugated Containers | AN1: Magazines and Third class mail | AO1: Newspaper | AP1: Office Paper | AQ1: Phonebooks | AR1: Textbooks | AS1: Dimensional Lumber | AT1: Medium density Fiberboard | AU1: Food Waste non meat | AV1: Food Waste meat only | AW1: Beef | AX1: Poultry | AY1: Grains | AZ1: Bread | BA1: Fruits and Vegetables | BB1: Dairy Products | BC1: Yard Trimmings | BD1: Grass | BE1: Leaves | BF1: Branches | BG1: Mixed Paper general | BH1: Mixed Paper primarily residential | BI1: Mixed Paper primarily from offices | BJ1: Mixed Metals | BK1: Mixed Plastics | BL1: Mixed Recyclables | BM1: Food Waste | BN1: Mixed Organics | BO1: Mixed MSW municipal solid waste | BP1: Carpet | BQ1: Desktop CPUs | BR1: Portable Electronic Devices | BS1: Flat panel Displays | BT1: CRT Displays | BU1: Electronic Peripherals | BV1: Hard copy Devices | BW1: Mixed Electronics | BX1: Clay Bricks | BY1: Concrete | BZ1: Fly Ash | CA1: Tires | CB1: Asphalt Concrete | CC1: Asphalt Shingles | CD1: Drywall | CE1: Fiberglass Insulation | CF1: Vinyl Flooring | CG1: Wood Flooring | CH1: Facility Improvement Type
A2: Stationary Combustion | B2: Help - Data Management | C2: Anthracite Coal | D2: Passenger Cars - Gasoline | E2: Ships and Boats - Residual Fuel Oil | F2: Domestic Refrigeration | G2: CO2 | H2: Fixed | I2: CO2 | J2: CO2 | K2: ='Emission Factors'!A330 -> AKGD (ASCC Alaska Grid) | L2: Natural Gas | M2: Steam methane reforming | N2: Passenger Car | O2: ='Emission Factors'!A364 -> Intercity Rail - Northeast Corridor | P2: Air Short Haul (< 300 miles) | Q2: Medium- and Heavy-duty Truck | R2: Medium- and Heavy-Duty Truck | S2: Anthracite Coal | T2: Solid | U2: SCF | V2: Gallons | W2: Short Ton | X2: ='Unit Conversions'!A10 -> gram (g) | Z2: Recycled | AA2: Recycled | AB2: Recycled | AC2: Recycled | AD2: Recycled | AE2: Recycled | AF2: Landfilled | AG2: Recycled | AH2: Landfilled | AI2: Landfilled | AJ2: Landfilled | AK2: Landfilled | AL2: Landfilled | AM2: Recycled | AN2: Recycled | AO2: Recycled | AP2: Recycled | AQ2: Recycled | AR2: Recycled | AS2: Recycled | AT2: Recycled | AU2: Landfilled | AV2: Landfilled | AW2: Landfilled | AX2: Landfilled | AY2: Landfilled | AZ2: Landfilled | BA2: Landfilled | BB2: Landfilled | BC2: Landfilled | BD2: Landfilled | BE2: Landfilled | BF2: Landfilled | BG2: Recycled | BH2: Recycled | BI2: Recycled | BJ2: Recycled | BK2: Recycled | BL2: Recycled | BM2: Landfilled | BN2: Landfilled | BO2: Landfilled | BP2: Landfilled | BQ2: Landfilled | BR2: Landfilled | BS2: Landfilled | BT2: Landfilled | BU2: Landfilled | BV2: Landfilled | BW2: Landfilled | BX2: Landfilled | BY2: Recycled | BZ2: Recycled | CA2: Recycled | CB2: Recycled | CC2: Recycled | CD2: Landfilled | CE2: Recycled | CF2: Landfilled | CG2: Landfilled
A3: Mobile Sources | B3: Help - Stationary Combustion | C3: Bituminous Coal | D3: Light-Duty Trucks - Gasoline | E3: Ships and Boats - Gasoline (2 stroke) | F3: Stand-Alone Commercial | G3: HFC-23 | H3: Portable | I3: HFC-23 | J3: CH4 | K3: ='Emission Factors'!A331 -> AKMS (ASCC Miscellaneous) | L3: Distillate Fuel Oil No. 2 | M3: Nuclear (LWR) high-termperature electrolysis | N3: Light-Duty Truck | O3: ='Emission Factors'!A365 -> Intercity Rail - Other Routes | P3: Air Medium Haul (>= 300 miles, < 2300 miles) | Q3: Light-Duty Truck | R3: Rail | S3: Bituminous Coal | T3: Solid | U3: Therm | V3: MMBtu | W3: MMBtu | X3: ='Unit Conversions'!A11 -> kilogram (kg) | Z3: Landfilled | AA3: Landfilled | AB3: Landfilled | AC3: Landfilled | AD3: Landfilled | AE3: Landfilled | AF3: Combusted | AG3: Landfilled | AH3: Combusted | AI3: Combusted | AJ3: Combusted | AK3: Combusted | AL3: Combusted | AM3: Landfilled | AN3: Landfilled | AO3: Landfilled | AP3: Landfilled | AQ3: Landfilled | AR3: Landfilled | AS3: Landfilled | AT3: Landfilled | AU3: Combusted | AV3: Combusted | AW3: Combusted | AX3: Combusted | AY3: Combusted | AZ3: Combusted | BA3: Combusted | BB3: Combusted | BC3: Combusted | BD3: Combusted | BE3: Combusted | BF3: Combusted | BG3: Landfilled | BH3: Landfilled | BI3: Landfilled | BJ3: Landfilled | BK3: Landfilled | BL3: Landfilled | BM3: Combusted | BN3: Combusted | BO3: Combusted | BP3: Combusted | BQ3: Combusted | BR3: Combusted | BS3: Combusted | BT3: Combusted | BU3: Combusted | BV3: Combusted | BW3: Combusted | BY3: Landfilled | BZ3: Landfilled | CA3: Landfilled | CB3: Landfilled | CC3: Landfilled | CE3: Landfilled | CF3: Combusted | CG3: Combusted
A4: Refrigeration and AC | B4: Help - Mobile Sources | C4: Sub-bituminous Coal | D4: Heavy-Duty Vehicles - Gasoline | E4: Ships and Boats - Gasoline (4 stroke) | F4: Medium/Large Commercial | G4: HFC-32 | I4: HFC-125 | J4: N2O | K4: ='Emission Factors'!A332 -> AZNM (WECC Southwest) | L4: Residual Fuel Oil No. 6 | M4: Low-temperature electrolysis (PEM) | N4: Motorcycle | O4: ='Emission Factors'!A366 -> Intercity Rail - National Average | P4: Air Long Haul (>= 2300 miles) | Q4: Passenger Car | R4: Aircraft | S4: Sub-bituminous Coal | T4: Solid | U4: MMBtu | X4: ='Unit Conversions'!A12 -> metric ton | Z4: Combusted | AA4: Combusted | AB4: Combusted | AC4: Combusted | AD4: Combusted | AE4: Combusted | AG4: Combusted | AL4: Composted | AM4: Combusted | AN4: Combusted | AO4: Combusted | AP4: Combusted | AQ4: Combusted | AR4: Combusted | AS4: Combusted | AT4: Combusted | AU4: Composted | AV4: Anaerobically Digested (Dry Digestate with Curing) | AW4: Composted | AX4: Composted | AY4: Composted | AZ4: Composted | BA4: Composted | BB4: Composted | BC4: Composted | BD4: Composted | BE4: Composted | BF4: Composted | BG4: Combusted | BH4: Combusted | BI4: Combusted | BJ4: Combusted | BK4: Combusted | BL4: Combusted | BM4: Composted | BN4: Composted | CA4: Combusted | CC4: Combusted
A5: Fire Suppression | B5: Help - Refrigeration and AC | C5: Lignite Coal | D5: Motorcycles - Gasoline | E5: Ships and Boats - Diesel | F5: Transport Refrigeration | G5: HFC-125 | I5: HFC-134a | J5: SF6 | K5: ='Emission Factors'!A333 -> CAMX (WECC California) | L5: Kerosene | M5: Coal gasification | O5: ='Emission Factors'!A367 -> Commuter Rail | R5: Waterborne Craft | S5: Lignite Coal | T5: Solid | X5: ='Unit Conversions'!A13 -> pounds (lb) | AU5: Anaerobically Digested (Dry Digestate with Curing) | AV5: Anaerobically Digested (Wet Digestate with Curing) | AW5: Anaerobically Digested (Dry Digestate with Curing) | AX5: Anaerobically Digested (Dry Digestate with Curing) | AY5: Anaerobically Digested (Dry Digestate with Curing) | AZ5: Anaerobically Digested (Dry Digestate with Curing) | BA5: Anaerobically Digested (Dry Digestate with Curing) | BB5: Anaerobically Digested (Dry Digestate with Curing) | BC5: Anaerobically Digested (Dry Digestate with Curing) | BD5: Anaerobically Digested (Dry Digestate with Curing) | BE5: Anaerobically Digested (Dry Digestate with Curing) | BF5: Anaerobically Digested (Dry Digestate with Curing)
A6: Purchased Gases | B6: Help - Fire Suppression | C6: Mixed (Commercial Sector) | D6: Passenger Cars - Diesel | E6: Locomotives - Diesel | F6: Industrial Refrigeration | G6: HFC-134a | I6: HFC-227ea | J6: NF3 | K6: ='Emission Factors'!A334 -> ERCT (ERCOT All) | L6: Liquefied Petroleum Gases (LPG) | M6: Biomass gasification | O6: ='Emission Factors'!A368 -> Transit Rail (i.e. Subway, Tram) | S6: Mixed (Commercial Sector) | T6: Solid | X6: ='Unit Conversions'!A14 -> short ton | AU6: Anaerobically Digested (Wet Digestate with Curing) | AW6: Anaerobically Digested (Wet Digestate with Curing) | AX6: Anaerobically Digested (Wet Digestate with Curing) | AY6: Anaerobically Digested (Wet Digestate with Curing) | AZ6: Anaerobically Digested (Wet Digestate with Curing) | BA6: Anaerobically Digested (Wet Digestate with Curing) | BB6: Anaerobically Digested (Wet Digestate with Curing)
A7: Electricity | B7: Help - Purchased Gases | C7: Mixed (Electric Power Sector) | D7: Light-Duty Trucks - Diesel | E7: Aircraft - Jet Fuel | F7: Chillers | G7: HFC-143a | I7: HFC-236fa | J7: HFC-23 | K7: ='Emission Factors'!A335 -> FRCC (FRCC All) | L7: Anthracite Coal | M7: Auto-thermal reforming | O7: ='Emission Factors'!A369 -> Bus | S7: Mixed (Electric Power Sector) | T7: Solid
A8: Steam | B8: Help - Electricity | C8: Mixed (Industrial Coking) | D8: Medium- and Heavy-Duty Vehicles - Diesel | E8: Aircraft - Aviation Gasoline | F8: Residential/Commercial A/C | G8: HFC-152a | I8: CF4 | J8: HFC-32 | K8: ='Emission Factors'!A336 -> HIMS (HICC Miscellaneous) | L8: Bituminous Coal | M8: Other | S8: Mixed (Industrial Coking) | T8: Solid
A9: Business Travel | B9: Help - Steam | C9: Mixed (Industrial Sector) | D9: Light-Duty Cars - Methanol | E9: Agricultural Equipment - Gasoline (2 stroke) | F9: Car A/C Units | G9: HFC-236fa | I9: C4F10 | J9: HFC-125 | K9: ='Emission Factors'!A337 -> HIOA (HICC Oahu) | L9: Sub-bituminous Coal | S9: Mixed (Industrial Sector) | T9: Solid
A10: Commuting | B10: Help - Business Travel | C10: Coal Coke | D10: Light-Duty Cars - Ethanol | E10: Agricultural Equipment - Gasoline (4 stroke) | F10: Light-Duty Truck A/C Units | G10: CF4 | J10: HFC-134a | K10: ='Emission Factors'!A338 -> MROE (MRO East) | L10: Lignite Coal | S10: Coal Coke | T10: Solid
A11: Upstream Trans and Dist | B11: Help - Commuting | C11: Municipal Solid Waste | D11: Light-Duty Cars - CNG | E11: Agricultural Equipment - Gasoline Off-Road Trucks | G11: C2F6 | J11: HFC-143a | K11: ='Emission Factors'!A339 -> MROW (MRO West) | L11: Mixed (Electric Power Sector) | S11: Municipal Solid Waste | T11: Solid
A12: Waste | B12: Help - Upstream Trans and Dist | C12: Petroleum Coke (Solid) | D12: Light-Duty Cars - LPG | E12: Agricultural Equipment - Diesel Equipment | G12: SF6 | J12: HFC-152a | K12: ='Emission Factors'!A340 -> NEWE (NPCC New England) | L12: Coal Coke | S12: Petroleum Coke (Solid) | T12: Solid
A13: Offsets | B13: Help - Market-Based Method | C13: Plastics | D13: Light-Duty Cars - Biodiesel | E13: Agricultural Equipment - Diesel Off-Road Trucks | G13: R-401A | J13: HFC-236fa | K13: ='Emission Factors'!A341 -> NWPP (WECC Northwest) | L13: Wood and Wood Residuals | S13: Plastics | T13: Solid
B14: Help - Offsets | C14: Tires | D14: Light-Duty Trucks - Ethanol | E14: Agricultural Equipment - LPG | G14: R-401B | J14: CF4 | K14: ='Emission Factors'!A342 -> NYCW (NPCC NYC/Westchester) | L14: Landfill Gas | S14: Tires | T14: Solid
C15: Agricultural Byproducts | D15: Light-Duty Trucks - CNG | E15: Construction/Mining Equipment - Gasoline (2 stroke) | G15: R-401C | J15: C2F6 | K15: ='Emission Factors'!A343 -> NYLI (NPCC Long Island) | S15: Agricultural Byproducts | T15: Solid
C16: Peat | D16: Light-Duty Trucks - LPG | E16: Construction/Mining Equipment - Gasoline (4 stroke) | G16: R-402A | J16: C3F8 | K16: ='Emission Factors'!A344 -> NYUP (NPCC Upstate NY) | S16: Peat | T16: Solid
C17: Solid Byproducts | D17: Light-Duty Trucks - LNG | E17: Construction/Mining Equipment - Gasoline Off-Road Trucks | G17: R-402B | J17: C4F10 | K17: PRMS (Puerto Rico Miscellaneous) | S17: Solid Byproducts | T17: Solid
C18: Wood and Wood Residuals | D18: Light-Duty Trucks - Biodiesel | E18: Construction/Mining Equipment - Diesel Equipment | G18: R-403B | J18: c-C4F8 | K18: ='Emission Factors'!A346 -> RFCE (RFC East) | S18: Wood and Wood Residuals | T18: Solid
C19: Natural Gas | D19: Medium-Duty Trucks - CNG | E19: Construction/Mining Equipment - Diesel Off-Road Trucks | G19: R-404A | J19: C5F12 | K19: ='Emission Factors'!A347 -> RFCM (RFC Michigan) | S19: Natural Gas | T19: Gas
C20: Propane Gas | D20: Medium-Duty Trucks - LPG | E20: Construction/Mining Equipment - LPG | G20: R-406A | J20: C6F14 | K20: ='Emission Factors'!A348 -> RFCW (RFC West) | S20: Propane Gas | T20: Gas
C21: Landfill Gas | D21: Medium-Duty Trucks - LNG | E21: Lawn and Garden Equipment - Gasoline (2 stroke) | G21: R-407A | J21: R-401A | K21: ='Emission Factors'!A349 -> RMPA (WECC Rockies) | S21: Landfill Gas | T21: Gas
D22: Medium-Duty Trucks - Biodiesel | E22: Lawn and Garden Equipment - Gasoline (4 stroke) | G22: R-407B | J22: R-401B | K22: ='Emission Factors'!A350 -> SPNO (SPP North) | S22: Distillate Fuel Oil No. 2 | T22: Liquid
C23: Distillate Fuel Oil No. 2 | D23: Heavy-Duty Trucks - Methanol | E23: Lawn and Garden Equipment - Diesel | G23: R-407C | J23: R-401C | K23: ='Emission Factors'!A351 -> SPSO (SPP South) | S23: Residual Fuel Oil No. 6 | T23: Liquid
C24: Residual Fuel Oil No. 6 | D24: Heavy-Duty Trucks - Ethanol | E24: Lawn and Garden Equipment - LPG | G24: R-407D | J24: R-402A | K24: ='Emission Factors'!A352 -> SRMV (SERC Mississippi Valley) | S24: Kerosene | T24: Liquid
C25: Kerosene | D25: Heavy-Duty Trucks - CNG | E25: Airport Equipment - Gasoline | G25: R-407E | J25: R-402B | K25: ='Emission Factors'!A353 -> SRMW (SERC Midwest) | S25: Liquefied Petroleum Gases (LPG) | T25: Liquid
C26: Liquefied Petroleum Gases (LPG) | D26: Heavy-Duty Trucks - LPG | E26: Airport Equipment - Diesel | G26: R-408A | J26: R-403B | K26: ='Emission Factors'!A354 -> SRSO (SERC South) | S26: Biodiesel (100%) | T26: Liquid
C27: Biodiesel (100%) | D27: Heavy-Duty Trucks - LNG | E27: Airport Equipment - LPG | G27: R-409A | J27: R-404A | K27: ='Emission Factors'!A355 -> SRTV (SERC Tennessee Valley) | S27: Ethanol (100%) | T27: Liquid
C28: Ethanol (100%) | D28: Heavy-Duty Trucks - Biodiesel | E28: Industrial/Commercial Equipment - Gasoline (2 stroke) | G28: R-410A | J28: R-406A | K28: ='Emission Factors'!A356 -> SRVC (SERC Virginia/Carolina) | S28: Vegetable Oil | T28: Liquid
C29: Vegetable Oil | D29: Buses - Methanol | E29: Industrial/Commercial Equipment - Gasoline (4 stroke) | G29: R-410B | J29: R-407A
D30: Buses - Ethanol | E30: Industrial/Commercial Equipment - Diesel | G30: R-411A | J30: R-407B
D31: Buses - CNG | E31: Industrial/Commercial Equipment - LPG | G31: R-411B | J31: R-407C
D32: Buses - LPG | E32: Logging Equipment - Gasoline (2 stroke) | G32: R-413A | J32: R-407D
D33: Buses - LNG | E33: Logging Equipment - Gasoline (4 stroke) | G33: R-414A | J33: R-407E
D34: Buses - Biodiesel | E34: Logging Equipment - Diesel | G34: R-414B | J34: R-408A
E35: Railroad Equipment - Gasoline | G35: R-417A | J35: R-409A
E36: Railroad Equipment - Diesel | G36: R-422A | J36: R-410A
E37: Railroad Equipment - LPG | G37: R-422D | J37: R-410B
E38: Recreational Equipment - Gasoline (2 stroke) | G38: R-423A | J38: R-411A
E39: Recreational Equipment - Gasoline (4 stroke) | G39: R-424A | J39: R-411B
E40: Recreational Equipment - Diesel | G40: R-426A | J40: R-413A
E41: Recreational Equipment - LPG | G41: R-428A | J41: R-414A
G42: R-434A | J42: R-414B
G43: R-500 | J43: R-417A
G44: R-502 | J44: R-422A
G45: R-504 | J45: R-422D
G46: R-507 | J46: R-423A
G47: R-508A | J47: R-424A
G48: R-508B | J48: R-426A
J49: R-428A
J50: R-434A
J51: R-500
J52: R-502
J53: R-504
J54: R-507
J55: R-508A
J56: R-508B

Sheet Help - Stationary Combustion
K1: Back to Introduction Tab
A3: Scope 1 Emissions from Stationary Combustion Sources - HELP SHEET
A5: DEFINITION
A6: Combustion emission sources are stationary sources that combust fuel, like a natural gas hot water heater for an office building or an oil burning boiler. Emissions result from the actual combustion of the fuels to produce useful products, like heat and hot water.
A8: COLLECT
A9: To account for these sources, collect information about the type of fuel used and the quantity of fuel combusted at each facility. Sources of data can vary, but the data are often provided by the utility organization that supplies the fuel to the organization. A monthly natural gas bill, for example, can be used to provide information regarding how much natural gas was purchased for the previous billing cycle.
A10: Data Collection Checklist (for all facilities)
A11: - | B11: Type of fuel consumed
A12: - | B12: Amount of fuel consumed
A14: QUANTIFY
A15: After the data has been collected, it should be entered into the appropriate orange colored boxes of the Calculator section titled “Stationary Combustion.” The fuel type can be selected from the form. After the data are entered into the Calculator, the CO2 equivalent emissions are displayed in the blue colored box.
A18: Items to Note
A19: - | B19: Use the heat content sheet to convert units provided on the invoice into the units the Calculator requires.
A20: - | B20: If you are one of many tenants in a facility and you do not have the actual amount of fuel used in your space, you may estimate your fuel usage by multiplying the fuel usage of the entire facility by the percentage of the floor area that your organization occupies.
A21: - | B21: Companies with home offices can optionally include these spaces in their inventory if the energy use associated with business activities can be reasonably estimated.
A22: - | B22: The Energy Information Administration conducts a Commercial Building Energy Consumption Survey and provides average energy consumption by building type per square foot. Use the numbers below to compare against your data or to estimate for natural gas if no data are available. For example, if you have a 1,000 sq ft office suite in the Northeast multiply by 20.6 to get an estimation of 20,600 scf natural gas for a year.
B24: Natural Gas Intensity | C24: standard cubic feet (scf) natural gas / sq ft / year
B25: Principal Building Activity | C25: Northeast | D25: Midwest | E25: South | F25: West
B26: Education | C26: 41.5 | D26: 38.7 | E26: 21.2 | F26: 21.9
B27: Food sales | C27: Insufficient Data | D27: 75.4 | E27: Insufficient Data | F27: Insufficient Data
B28: Food service | C28: Insufficient Data | D28: 212 | E28: 152.2 | F28: 106.4
B29: Health care | C29: 58.2 | D29: 59.4 | E29: 63.5 | F29: 54.2
B30: Inpatient | C30: 89.5 | D30: 71.1 | E30: 76 | F30: 84
B31: Outpatient | C31: 30.9 | D31: 34 | E31: 22.8 | F31: 22.4
B32: Lodging | C32: 45.7 | D32: 44.1 | E32: 27.1 | F32: 38.6
B33: Mercantile | C33: 41.9 | D33: 41.4 | E33: 28.9 | F33: 37.1
B34: Retail (other than mall) | C34: 25 | D34: 26.4 | E34: 20 | F34: 22.5
B35: Enclosed and strip malls | C35: 49.2 | D35: 58.9 | E35: 34.2 | F35: 43.9
B36: Office | C36: 20.6 | D36: 26.3 | E36: 18.7 | F36: 18.6
B37: Public assembly | C37: 52.6 | D37: 48.5 | E37: 28.7 | F37: 33.5
B38: Public order and safety | C38: Insufficient Data | D38: Insufficient Data | E38: 40.2 | F38: 34.8
B39: Religious worship | C39: 33.8 | D39: 28.6 | E39: 16.7 | F39: 17.4
B40: Service | C40: 38.2 | D40: 38.3 | E40: 51.3 | F40: 39.1
B41: Warehouse and storage | C41: 19.3 | D41: 27.7 | E41: 13.5 | F41: 10.4
B42: Other | C42: 38.7 | D42: Insufficient Data | E42: 21.2 | F42: Insufficient Data
B43: Vacant | C43: Insufficient Data | D43: Insufficient Data | E43: Insufficient Data | F43: Insufficient Data
B44: Source: EIA's Commercial Buildings Energy Consumption Survey (CBECS) 2018, Released September 2022. Table C25: Natural gas consumption and conditional energy intensity by Census region, 2018
B45: https://www.eia.gov/consumption/commercial/data/2018/index.php?view=characteristics

Sheet Help - Refrigeration and AC
K1: Back to Introduction Tab
A3: Scope 1 Emissions from Refrigeration and Air Conditioning Equipment - HELP SHEET
A5: DEFINITION
A6: Refrigeration and Air Conditioning (AC) equipment sources can vary in size based on the type of organization. Emissions from refrigeration and AC devices, in facilities or vehicles, are caused by the leakage of chemicals with global warming impact during use, maintenance and/or disposal of the device. They are often small sources for office-based organizations. For example, a small office building may have one rooftop AC unit while a grocery store chain may have several rooftop AC units per store as well as a multitude of other refrigeration equipment.
A8: COLLECT
A9: Choose one of three different calculation methods available in the “Refrigeration and AC” section of the Calculator. The types of refrigerants along with the data needs for each method are listed in the Calculator. Data for these sources is often collected from maintenance and inspection records, work orders, or invoices from contractors that service this equipment. Refrigerants not included on the list may be chemicals that do not need to be included in the inventory. For example, ozone depleting substances, such as chlorofluorocarbons (CFCs) or “freon” and hydrochlorofluorocarbons (HCFCs), are regulated internationally and are typically excluded from a GHG inventory or reported as a memo item. A reason to track these sources is to provide explanation for the increase of HFCs and PFCs when they replace the phased out CFCs and HCFCs.
A10: Data Collection Checklist (by equipment)
A11: - | B11: Refrigerant purchase, inventory, and disposal data
A12: - | B12: Inventory of equipment by facility
A13: - | B13: Refrigerant capacity of equipment
A14: - | B14: Amount of refrigerant (HFC and PFC) emitted over the inventory reporting period
A15: - | B15: Optional: Track HCFC and CFCs, such as R-22
A17: QUANTIFY
A18: Determine which of the three options is suitable for your business and enter the data into the appropriate orange colored boxes of the Calculator section titled “Refrigeration and AC.” Once the data are entered into the Calculator, the CO2 equivalent emissions are calculated and summarized in the blue colored box.
B19: Option 1: The Detailed Material Balance Method is recommended for companies who maintain their own equipment. This method requires data from inventories, purchase and service records, and the full and proper charges of equipment. It includes emissions from equipment operation, servicing, and disposal.
B20: Option 2: The Simplified Material Balance Method is recommended for companies who have contractors service their HFC/PFC containing equipment. This method tracks emissions from equipment operation, servicing, and disposal. The method requires data on the quantity of refrigerant: (a) used to fill new equipment during installation, (b) used to service equipment, and (c) recovered from retiring equipment, as well as the full and proper charges of new and retiring equipment. If notified in advance of the need for this information, the contractor should be able to provide it.
B21: Option 3: It is recommended that the Screening Method be used only as a screening tool because the emission factors used in the approach are highly uncertain. Emission factors vary between individual pieces of equipment and over time. Even if the amount of refrigerant added to a piece of equipment has been tracked carefully, permitting the previous leak rate of that equipment to be established, that leak rate can change after a leak is repaired or as the equipment ages.
A23: Items to Note
A24: - | B24: If you are one of many tenants in a facility and you cannot quantify the refrigerant emissions specific to your space, you may estimate them based on the percentage of the floor area that your organization occupies.
A25: - | B25: Emissions from refrigerants in an office-based organization are typically less than 2 percent of emissions. Consider this as you decide which Option is most appropriate.
A26: - | B26: If your organization uses a refrigerant that is not listed, the user may need to determine the constituent blend. This website lists common refrigerant compositions:
B27: http://www.epa.gov/ozone/snap/refrigerants/refblend.html
A28: - | B28: R-134a is the predominantly used refrigerant in vehicle AC systems. If you are uncertain of which refrigerant your vehicles use, you can assume R-134a.

Sheet Help - Fire Suppression
K1: Back to Introduction Tab
A3: Scope 1 Emissions from Fire Suppression Equipment - HELP SHEET
A5: DEFINITION
A6: Fire suppression emission sources can range in scale from a small portable fire extinguisher to a large scale fire suppression system for an office building or warehouse. The emissions are caused by chemicals (e.g., HFCs or CO2) emitted from fire suppression devices during use, maintenance, and disposal.
A8: COLLECT
A9: Choose one of three different calculation methods available in the “Fire Suppression” section of the Calculator. In each method, choose the types of fire suppression gases used and then gather the corresponding emissions data. Data for these sources is often collected from maintenance and inspection records, work orders, or invoices from contractors that service this equipment.
A10: Data Collection Checklist (by equipment and/or facility)
A11: - | B11: Fire suppressant purchase, inventory, and disposal data
A12: - | B12: Inventory of equipment by facility
A13: - | B13: Fire suppressant capacity of equipment
A14: - | B14: Amount of fire suppressant (HFC and PFC) emitted over the inventory reporting period
A16: QUANTIFY
A17: Enter the data into the appropriate orange colored boxes of the Calculator section titled “Fire Suppression.” Once the data are entered into the Calculator, the CO2 equivalent emissions are calculated and summarized in the blue colored box.
A19: Items to Note
A20: - | B20: Contact the manufacturer if you cannot find the list of propellants or chemicals used in the fire extinguisher.

Sheet Help - Purchased Gases
K1: Back to Introduction Tab
A3: Scope 1 Emissions from Purchased Gases - HELP SHEET
A5: DEFINITION
A6: Industrial gases are sometimes used in processes such as manufacturing, testing, or laboratory uses. For example, CO2 gas is often used in welding operations. These gases are typically released to the atmosphere after use. Any releases of the seven major greenhouse gases (CO2, CH4, N2O, PFCs, HFCs, SF6, and NF3) must be included in the GHG inventory. Ozone depleting substances, such as CFCs and HCFCs, are regulated internationally and are typically excluded from a GHG inventory or reported as a memo item.
A8: COLLECT
A9: Determine if CO2, CH4, N2O, PFCs, HFCs, SF6 or NF3 are used in processes such as those mentioned above. If so, collect the mass of gas purchased. If data are not available in mass units, the user may need to convert from volume to mass using the density of the specific gas.
A11: Data Collection Checklist (for all applicable facilities)
A12: - | B12: Type of gas purchased
A13: - | B13: Amount of gas purchased
A14: - | B14: Purpose for the gas
A16: QUANTIFY
A17: Enter the data into the appropriate orange colored boxes of the Calculator section titled “Gas.” Once the data are entered into the Calculator, the CO2 equivalent emissions are calculated and summarized in the blue colored box.
A19: Items to Note
A20: - | B20: If your business makes bulk purchases and plans on using the gas for several years, you should divide the bulk amount by the years of usage and report that amount.

Sheet Help - Electricity
K1: Back to Introduction Tab
A3: Scope 2 Emissions from Purchase of Electricity - HELP SHEET
A5: DEFINITION
A6: GHGs are emitted when fossil fuels are combusted to generate electricity. Companies account for their responsibility for these emissions by reporting them as scope 2 indirect emissions. This Calculator quantifies emissions from both the location-based method and the market-based method, and both totals should be reported. The location-based method considers average emission factors for the electricity grids that provide electricity. The market-based method considers contractual arrangements under which the organization procures power from specific sources, such as renewable energy. Market-based emission factors reflect these arrangements. Examples of market-based emission factors are: renewable energy certificates (RECs), power purchase agreements (PPAs), and supplier-specific factors. For detailed information on the location-based method and the market-based method review EPA's Indirect Emissions from Purchased Electricity Guidance (link at the bottom of this sheet).
A8: COLLECT
A9: Collect electricity purchase information in units of kWh for each facility. The best data source is typically its electricity bill or invoice. In the Calculator, there is a map at the bottom of the “Electricity” section which divides the United States into subregions based on the electric grid. Select the subregion(s) in which the organization’s facilities are located to determine the correct CO2, CH4, and N2O emission factors to use, since different parts of the country use different fuels to generate electricity. Multiple facility locations can be entered as separate line items in the Calculator. If a facility is on the border of a subregion, enter the zip code into EPA's Power Profiler (https://oaspub.epa.gov/powpro/ept_pack.charts) to find the correct subregion.
A10: Data Collection Checklist (for all facilities)
A11: - | B11: Amount of electricity purchased
A12: - | B12: Amount of electricity purchased using contractual arrangements
A13: - | B13: Emission factors (CO2, CH4 and N2O) for contractual arrangements
A15: QUANTIFY
A16: There are two methods to quantify emissions from electricity: location-based and market-based. Both must be quantified to be in accordance with the Center for Corporate Climate Leadership Greenhouse Gas Inventory Guidance.
A17: Location-based: Enter the data into the appropriate orange colored boxes (Table 1) of the Calculator section titled "Electricity.” Once the data are entered into the Calculator, the CO2 equivalent emissions are calculated and summarized in the blue colored box for the location based method.
A18: Market-based: Enter applicable market-based emission factors (lb/MWh) for the purchased electricity in the yellow cells (Table 1) of the Calculator section titled "Electricity.” See the market-based method Help sheet for additional guidance. Once the data are entered into the Calculator, the CO2 equivalent emissions are calculated and summarized in the blue colored box for the market-based method.
A21: Items to Note
A22: - | B22: If you are one of many tenants in a facility and you do not have the actual amount of electricity used in your space, you may estimate your usage by multiplying the electricity usage of the entire facility by the percentage of the floor area that your organization occupies.
A23: - | B23: The number off the utility bill to use is the total usage amount (i.e., the difference between the meter reading at the beginning of the month and the end of the month).
A24: - | B24: Companies with home offices can optionally include these spaces in their inventory if the energy use associated with business activities can be reasonably estimated.
A25: - | B25: The Energy Information Administration conducts a Commercial Building Energy Consumption Survey and provides average energy consumption by building type per square foot. Use the numbers below to compare against your data or to estimate if no data are available. For example, if you have a 1,000 sq ft office suite in the Northeast multiply by 17.1 to get an estimation of 17,100 kWh electricity for a year.
B27: Electricity Intensity | C27: kWh electricity / sq ft / year
B28: Principal Building Activity | C28: Northeast | D28: Midwest | E28: South | F28: West
B29: Education | C29: 7.9 | D29: 8.1 | E29: 11.4 | F29: 9
B30: Food sales | C30: Insufficient Data | D30: 67.3 | E30: 53.7 | F30: Insufficient Data
B31: Food service | C31: 29.7 | D31: 43 | E31: 52.7 | F31: 36.9
B32: Health care | C32: 19 | D32: 25 | E32: 27.3 | F32: 22.2
B33: Inpatient | C33: 22.4 | D33: 28.3 | E33: 32.2 | F33: 29.5
B34: Outpatient | C34: 15.9 | D34: 18.6 | E34: 19.6 | F34: 15.9
B35: Lodging | C35: 13.7 | D35: 14.8 | E35: 15.2 | F35: 13.2
B36: Mercantile | C36: 15.1 | D36: 15.4 | E36: 17.8 | F36: 17.2
B37: Retail (other than mall) | C37: 11.3 | D37: 12.7 | E37: 15.3 | F37: 13
B38: Enclosed and strip malls | C38: 17.9 | D38: 18.9 | E38: 20.2 | F38: 20.1
B39: Office | C39: 13.8 | D39: 12 | E39: 15.4 | F39: 12.5
B40: Public assembly | C40: 9.6 | D40: 11.6 | E40: 15.1 | F40: 9.4
B41: Public order and safety | C41: Insufficient Data | D41: Insufficient Data | E41: 16.7 | F41: 11.6
B42: Religious worship | C42: 5.1 | D42: 4.2 | E42: 5.4 | F42: 4.2
B43: Service | C43: 7.3 | D43: 5.7 | E43: 9 | F43: 7.6
B44: Warehouse and storage | C44: 6 | D44: 5.2 | E44: 6.5 | F44: 5.5
B45: Other | C45: 31.4 | D45: 24 | E45: 25.3 | F45: 45.5
B46: Vacant | C46: Insufficient Data | D46: 4.2 | E46: 4.9 | F46: Insufficient Data
B47: Source: Commercial Buildings Energy Consumption Survey (CBECS) 2012, Released September 2022. Table C15: Electricity consumption and conditional energy intensity by Census region, 2018
B48: https://www.eia.gov/consumption/commercial/data/2018/index.php?view=characteristics
A50: Refer to the Greenhouse Gas Inventory Guidance: Indirect Emissions from Purchased Electricity Guidance for more information.
B51: https://www.epa.gov/climateleadership/scope-1-and-scope-2-inventory-guidance

Sheet Help - Market-Based Method
K1: Back to Introduction Tab
A3: Market-Based Method - HELP SHEET
A5: Market-Based Electricity Emission Factors
A6: The market-based method considers contractual arrangements under which the organization procures electricity from specific sources, such as fossil, renewable, or other generation facilities. Market-based emission factors reflect these arrangements. The following are the types of market-based emission factors available, listed in order of preference based on the precision of the factors. If any of the first four types of emission factors are applicable, enter the factors in the yellow cells marked as "<enter factor>". If not, leave the yellow cells as is, and eGRID subregion factors will be used for market-based emissions.
A7: (1) | B7: Energy Attribute Certificates | D7: If an energy attribute certificate carries with it an emission factor, that factor can be used to quantify emissions in the market-based method. Examples are renewable energy certificates (RECs) or Guarantees of Origin (GOs). The emission factor is based on the specific source that the certificate represents, regardless of the energy resource used. Typically these certificates represent renewable energy and may have an emission factor of zero, but they may in some cases have a non-zero emission factor (e.g., if there is a fossil-fuel or biomass generation component).
A8: (2) | B8: Contracts | D8: An organization may have a contract, such as a power purchase agreement (PPA), to purchase electricity from a specified generating facility, which may be located at the organization's facility, at a nearby location with a direct line connection to the organization, or located remotely. If there are no certificates available, the contract itself carries the emission factor associated with the generation facility, regardless of the energy resource used. If certificates are used, see Energy Attribute Certificates above.
A9: (3) | B9: Supplier-Specific Emission Factor | D9: An electricity supplier, such as a regulated utility or a deregulated supplier, may provide information to its customers on the emission factor associated with its electricity product. To be used in the market-based method, the emission factor must include all the electricity delivered by the supplier, including electricity it generates as well as electricity it purchases from others.
A10: (4) | B10: Residual Mix Factor | D10: A residual mix emission factor represents the emissions and generation that remain after certificates, contracts, and supplier-specific factors have been claimed and removed from the calculation. Residual mix emission factors are currently not widely available. Organizations are encouraged to check for available residual mix factors each year when their GHG inventory is completed, if the options above are not available or relevant.
A11: (5) | B11: Regional Emission Factor | D11: If residual mix factors are not available, organizations can use a regional grid average emission factor as the default. This calculator will use eGRID subregion emission factors in this case.
A12: (6) | B12: National Emission Factor | D12: This should not be applicable for any companies reporting US based emissions, due to the availability of regional emission factors.
A14: Quality Criteria for Contractual Instruments
A15: All contractual instruments used in the market-based method must meet the following criteria:
A16: (1) Convey the direct GHG emission rate attribute associated with the unit of electricity produced.
A17: (2) Be the only instruments that carry the GHG emission rate attribute claim associated with that quantity of electricity generation. See the "Items to Note" section of the Help sheet for suggested estimation approaches.
A18: (3) Be tracked and redeemed, retired, or canceled by or on behalf of the reporting entity. This can be done through a tracking system, an audit of contracts, third-party certification, or other means.
A19: (4) Have a vintage that matches as closely as possible to the date of the reporting period to which the instruments are applied. The vintage of the instrument is based on the date of the energy generation that the instrument represents.
A20: (5) Be sourced from the same market in which the reporting entity’s electricity-consuming operations are located and to which the instrument is applied. A market is defined as a geographical area which has a common system for trading and retiring contractual instruments. For this purpose the U.S. constitutes a single market, despite regional grid boundaries.
A21: The Indirect Emissions from Purchased Electricity Guidance defines EPA best-practice quality recommendations that go beyond these minimum requirements.
A23: Items to Note
A24: - | B24: EPA encourages organizations to use renewable energy as a way to reduce the environmental impacts associated with the electricity they purchase. Organizations can reduce their market-based scope 2 emissions by purchasing renewable energy, or “green power.” They can do this by choosing a differentiated electricity product from their utility or electricity supplier, by contracting directly with a renewable energy generator (if the regulatory rules allow), or by purchasing unbundled renewable energy certificates (RECs). In any case, the RECs must be acquired and retired.
A26: An Example
A27: In a situation where an organization has procured electricity from a specific source that is relevant to report for the market-based method, but the source supplies less than 100% of the kWh consumed by the facility, it is important to enter the data correctly. Consider the following scenario:
B28: - 100,000 kWh total facility consumption
B29: - 25,000 kWh purchased with energy attribute certificates such as renewable energy certificates (RECs).
B30: - Emission factors for RECs from many RE sources are zero.
B31: - No other market-based emission factors are available.
A33: The table below shows how to enter the data for this example site. There are two rows entered for the facility in order to allocate the market-based emissions to the appropriate kWh.
A34: The total Electricity Purchased (kWh) of the two rows adds up to facility's total consumption. Be careful not to double count kWh.
A35: The REC emission factors are entered in the first row. In the second row, there is no need to enter market-based emission factors, because none are available.
F37: Market-Based Use these cells to enter contractual or supplier specific emission factors
A38: Table 1. Total Amount of Electricity Purchased by eGRID Subregion | F38: Emission Factors
A39: Source | B39: Source | C39: Source | D39: eGRID Subregion | E39: Electricity | F39: CO2 | G39: CH4 | H39: N2O
A40: ID | B40: Description | C40: Area (sq ft) | D40: where electricity is consumed | E40: Purchased | F40: Emissions | G40: Emissions | H40: Emissions
E41: (kWh) | F41: (lb/MWh) | G41: (lb/MWh) | H41: (lb/MWh)
A42: Building A | B42: Wind Farm RECs | C42: 6000 | D42: RFCW (RFC West) | E42: 25000 | F42: 0 | G42: 0 | H42: 0
A43: Building A | B43: Local Utility | C43: 6000 | D43: RFCW (RFC West) | E43: =100000-E42 -> 75000 | F43: <enter factor> | G43: <enter factor> | H43: <enter factor>
A46: Refer to the Greenhouse Gas Inventory Guidance: Indirect Emissions from Purchased Electricity Guidance for more information.
B47: https://www.epa.gov/climateleadership/center-corporate-climate-leadership-greenhouse-gas-inventory-guidance

Sheet Help - Steam
K1: Back to Introduction Tab
A3: Scope 2 Emissions from Purchase of Steam - HELP SHEET
A5: DEFINITION
A6: Similar to electricity production, GHGs are emitted when fossil fuels are combusted to generate heat or steam. If the organization purchases heat or steam, the emissions are accounted for as scope 2 indirect emissions. Also similar to electricity, both the location-based method and the market-based method should be calculated and reported as done in this Calculator. Typically supplier-specific emission factors for steam will apply to both location-based and market-based emissions, and no market-based emission factors need to be entered. If needed, see the market-based method Help Sheet for more information.
A8: COLLECT
A9: Determine the amount of steam purchased, the types of fuel that the steam supplier uses to generate the steam, and either the emission factors provided by the steam supplier or the boiler efficiency. If values for boiler efficiency are unavailable, a default of 80% is provided in the Calculator.
A10: Data Collection Checklist (for all facilities)
A11: - | B11: Amount of steam purchased
A12: - | B12: Fuel type used to generate steam
A13: - | B13: Boiler efficiency or supplier-specific emission factors
A15: QUANTIFY
A16: Enter the data into the appropriate orange colored boxes (Table 1) of the Calculator section titled “Steam.” Once the data are entered into the Calculator, the CO2 equivalent emissions are calculated and summarized in the blue colored box. Enter the market-based emission factors in the yellow cells if applicable.
A18: Items to Note
A19: - | B19: Use the heat content sheet to convert units provided on the invoice into the units the Calculator requires.
A20: - | B20: If you are one of many tenants in a facility and you do not have the actual amount of steam used in your space, you may estimate your usage by multiplying the steam usage of the entire facility by the percentage of the floor area that your organization occupies.

Sheet Help - Hydrogen
A1: Scope 2 Emissions from Purchase of Hydrogen - HELP SHEET | K1: Back to Introduction Tab
A3: DEFINITION
A4: Similar to electricity production, GHGs may be emitted when hydrogen is produced. If the organization purchases hydrogen, the emissions are accounted for as scope 2 indirect emissions. Typically, a supplier of hydrogen will understand the greenhouse gas emissions associated with their production process (as is necessary to claim certain incentives).
A6: COLLECT
A7: Determine the amount of hydrogen purchased, the process and types of fuel that the hydrogen supplier uses to produce the hydrogen, and the emission factors provided by the hydrogen producer. If values are unavailable, use the assumptions provided below.
A8: Data Collection Checklist (for all facilities)
A9: - | B9: Amount of steam purchased
A10: - | B10: Fuel type used to generate steam
A11: - | B11: Boiler efficiency or supplier-specific emission factors
A13: QUANTIFY
A14: Enter the data into the appropriate orange colored boxes (Table 1) of the Calculator section titled “Hydrogen.” Once the data are entered into the Calculator, the CO2 equivalent emissions are calculated and summarized in the blue colored box.
A16: Items to Note
A17: - | B17: Use the heat content sheet to convert units provided on the invoice into the units the Calculator requires.

Sheet Sector List (hidden)
A1: Sector | B1: Facility Improvement Types | C1: AOI 2B | D1: Eligible SAEP
A2: Aluminum | B2: Establish New Facility | C2: Ammonia | D2: 1. Property designed to be used to produce energy from the sun, water, wind, geothermal deposits, or other renewable resources.
A3: Cement and Concrete | B3: Re-Equip Existing Facility, already operational by the applicant | C3: Organic chemicals | D3: 2. Fuel cells, microturbines, or energy storage systems and components.
A4: Chemicals | B4: Re-Equip Existing Facility, not yet operational by the applicant | C4: Cement, concrete or components such as supplementary cementitious materials | D4: 3. Electric grid modernization equipment or components.
A5: Food and Beverage | B5: Expand Existing Facility, already operational by the applicant | C5: Iron | D5: 4. Property designed to capture, transport, remove, use, or sequester carbon oxide emissions.
A6: Glass | B6: Expand Existing Facility, not yet operational by the applicant | C6: Steel | D6: 5. Equipment designed to refine, electrolyze, or blend any fuel, chemical, or product which is renewable, or low-carbon and low-emission.
A7: Iron and Steel | C7: Aluminum | D7: 6. Property designed to produce energy conservation technologies (including for residential, commercial, and industrial applications).
A8: Pulp and Paper | C8: Glass | D8: 7. Light-, medium-, or heavy-duty electric or fuel cell vehicles, as well as technologies, components, or materials for such vehicles, and associated charging or refueling infrastructure.
A9: Refining | C9: Other | D9: 8. Hybrid vehicles with a gross vehicle weight rating of not less than 14,000 pounds as well as technologies, components, or materials for such vehicles.
A10: Other | C10: N/A | D10: 9.A Specialized components and equipment for nuclear power reactors or their fuels
A11: N/A | D11: 9.B Equipment used to reduce the emissions of industrial processes not otherwise defined.
D12: N/A
A13: Process Changes
A14: low- or zero carbon process heat systems
A15: carbon capture, transport, utliziation and storage systems
A16: energy efficiency
A17: reduction in waste from industrial processes
A18: electrification
A19: use of alternative feedstocks
A20: fuel switching
A21: material efficiency
A22: changes to process unit operations and/or chemistry
A23: other
A24: N/A
